Workbook

Sheet 目次・使い方
B16: 目次 | C16: シート名 | D16: 表題
C17: 目次・使い方 | D17: (このシート)
C18: 入力値チェック
C19: シート① | D19: リフト図
C20: シート② | D20: コンクリート打込み管理表
C21: シート③④ | D21: コンクリート打込み管理表（温度計測その1）
D22: コンクリート打込み管理表（温度計測その2）
C23: シート⑤ | D23: ひび割れ調査票（その1）
C24: シート⑥ | D24: ひび割れ調査票（その2）
C25: シート⑦ | D25: 設計，施工対比確認表（その1）
C26: シート⑧ | D26: 設計，施工対比確認表（その2）
C27: 施工状況把握チェックシート | D27: 群馬県：施工状況把握チェックシート（コンクリート打込み時）
C28: 目視評価記録シート
C29: シートA 打設予定報告
B33: 使い方
B34: ①データ入力
C35: 「シート①」「シート②」「シート③④」「シート⑤」「シート⑥」「シート⑦」「シート⑧」に施工記録を入力してください。
B37: ②入力値チェック
C38: 本シートをコンクリート構造物品質確保データベースに登録する際は、事前に入力値に問題がないか確認するチェックに合格する必要があります。
C39: 入力値チェックシートの「入力値チェック開始ボタン」をクリックすると、チェックが開始します。
C41: ◎エラーが存在する場合
C42: エラーが存在する場合は、入力値チェックシートにエラー箇所とエラー内容が表示されます。
C43: 当該箇所を確認し、エラーがなくなるまで修正してください。
C45: ◎エラーが存在しない場合
C46: エラーが存在しない場合は、入力値チェックシートの入力チェック結果に「エラーはありません。」と表示されます。
C47: エラーがないことを確認できたら、そのまま保存して下さい。
B49: 注意
B50: ※エラーチェック後の入力値を編集すると、コンクリート構造物品質確保データベースに登録することができません。
B51: チェック後に編集した場合はもう一度チェックを行ってください。
B52: ※エラーチェック後に本シートの印刷範囲設定は変更しないでください。

Sheet 入力値チェック
A1: 入力値チェックシート
D4: 入力値チェックボタン
A8: 要チェックメッセージ | E8: =IF(0<COUNTIF(CheckList!I3:I800,"D"),"新たに入力された箇所があります。入力値チェックボタンを押してチェックをしてください。","新たに入力された箇所はありません。") -> 新たに入力された箇所があります。入力値チェックボタンを押してチェックをしてください。
E9: ※「新たに入力された箇所はありません。」でないとシステムに登録できません。
A11: 入力値チェック結果 | E11: =IF(0<$D$14,"エラーがあります。下記表に示された箇所を修正してください。",IF(0<COUNTIF(CheckList!I3:I800,"D"),"未チェックです。",IF(0=CheckList!$AB$2,"すべてのチェック項目が未入力です。","エラーはありません。"))) -> 未チェックです。
E12: ※「エラーはありません。」でないとシステムに登録できません。
B14: エラー数 | D14: =COUNTA($D$17:INDIRECT("$D" & TEXT((17)+MAX(CheckList!A3:A800),"@"))) -> 0 | E14: ※チェックに合格した後は、入力値の変更や印刷範囲設定の変更はせず、そのまま保存して下さい。
D16: 通番 | E16: シート名 | F16: 列・行 | G16: エラー内容

Sheet シート①
O1: 記録シート①
A2: リフト図
A3: ○基本情報
B4: 発注者(事務所名) | D4: 前橋土木事務所 | I4: 受注者 | K4: ○○建設（株）
B5: 路線・河川・地区等 | D5: 県道○○号 ○○橋下部工事 | I5: 工期 | K5: 2017-04-01 | M5: ～ | N5: 2018-03-01
B6: 工事名 | D6: ○○○工事 | M6: 工区 | N6: 2
B7: 施工場所 | D7: ○○市○○地内 | J7: 緯度 | K7: 36°55′15″ | M7: 経度 | N7: 122°56′1″
B8: 構造物名 | D8: ○○橋
B9: 構造物詳細 | D9: A1橋台 | I9: リフト名 | K9: 第2リフト
B12: 打込みリフト図
C32: ○構造 | I32: ○ひび割れ抑制対策
C33: 構造物種類 | F33: 橋台 | I33: 補強鉄筋 | L33: タイプA
C34: 構造形式 | F34: RC構造 | J34: 配筋状況（タイプA） | L34: D19 | M34: @125
C35: 打込み部位 | F35: たて壁 | J35: タイプA段数 | L35: 1 | M35: 段
C36: ○寸法 | J36: 配筋状況（タイプB)
C37: 厚さ | F37: 2.2 | G37: m | I37: 誘発目地間隔 | M37: m
C38: 長さ（幅） | F38: 10.1 | G38: m | I38: 膨張材 | M38: kg/m3
C39: ○配筋 | I39: その他の対策
C40: 主鉄筋 | E40: 前面 | F40: D29 | G40: @125
E41: 背面 | F41: D29 | G41: @125 | I41: ○鉄筋比
C42: 配力筋 | E42: 前面 | F42: D19 | G42: @125 | I42: 鉄筋比（対策前） | L42: 0.11 | M42: %
E43: 背面 | F43: D19 | G43: @125 | I43: 鉄筋比（実 施） | L43: 0.3 | M43: %
C44: 設計純かぶり | F44: 40mm
C45: 申し送り事項
I46: リフトID | L46: mihon

Sheet シート②
O1: 記録シート②
B2: コンクリート打込み管理表
A3: ○基本情報
B4: 路線・河川・地区等 | D4: =IF(シート①!D5="","",シート①!D5) -> 県道○○号 ○○橋下部工事 | I4: 工期 | K4: =IF(シート①!K5="","",シート①!K5) -> 2017-04-01 | M4: ～ | N4: =IF(シート①!N5="","",シート①!N5) -> 2018-03-01
B5: 工事名 | D5: =IF(シート①!D6="","",シート①!D6) -> ○○○工事 | M5: 工区 | N5: =IF(シート①!N6="","",シート①!N6) -> 2
B6: 構造物名 | D6: =IF(シート①!D8="","",シート①!D8) -> ○○橋
B7: 構造物詳細 | D7: =IF(シート①!D9="","",シート①!D9) -> A1橋台 | I7: リフト名 | K7: =IF(シート①!K9="","",シート①!K9) -> 第2リフト
A9: ○コンクリート
B10: 材 料 ・ 配 合 | C10: 呼び強度 | E10: 27 | F10: N/mm2 | G10: スランプ | I10: 8 | J10: cm | K10: 骨材最大寸法 | M10: 20 | N10: mm
C11: 水セメント比 | E11: 55 | F11: % | G11: 単位ｾﾒﾝﾄ量 | I11: 300 | J11: kg/m3
C12: セメント種類 | E12: 高炉B種 | G12: セメント会社 | I12: ○○セメント（株）
C13: 混和剤 | E13: AE減水剤 | G13: 混和材 | I13: ---
C14: 生コン工場 | E14: ○○（株） ○○工場
B15: 品 質 管 理 試 験 | C15: 試料採取時期 | E15: 打込み開始時 | H15: 150m3打込み時又は午後 | K15: 300m3打込み時 | N15: 試験許容値
C16: スランプ | E16: 9 | G16: cm | J16: cm | M16: cm | N16: 8±2.5cm
C17: 空気量 | E17: 5.5 | G17: % | J17: % | M17: % | N17: 4.5±1.5%
C18: 塩化物イオン量 | E18: 0.03 | G18: kg/m3 | J18: kg/m3 | M18: kg/m3 | N18: 0.3 | O18: kg/m3以下
C19: ｺﾝｸﾘｰﾄ温度 | E19: 24 | G19: ℃ | J19: ℃ | M19: ℃
C20: 打込み時外気温 | E20: 22 | G20: ℃ | J20: ℃ | M20: ℃
C21: 7日強度 | E21: 19 | G21: N/mm2 | J21: N/mm2 | M21: N/mm2
C22: 28日強度 | E22: 31 | G22: N/mm2 | J22: N/mm2 | M22: N/mm2
A24: ○運搬・打込み・締固め
B25: 打込み日 | D25: 2017-05-25 | H25: 天気 | J25: 曇りのち晴 | L25: 下側ﾘﾌﾄ打込み日 | N25: 2017-05-10
B26: 型枠種類 | D26: 塗装合板 | H26: 下側ﾘﾌﾄ打継目処理 | J26: 処理剤（○○）
B27: 運搬 | D27: 現場までの運搬時間 | F27: 20 | G27: 分 | H27: 現場待機時間 | J27: 0 | K27: 分 | L27: 荷卸し時間 | N27: 20 | O27: 分/台
D28: 現場内運搬方法 | F28: ポンプ（配管なし） | H28: ポンプ圧送距離 | J28: 0 | K28: m | L28: ポンプ車台数 | N28: 1 | O28: 台
B29: 打込み | D29: 開始時刻 | F29: 08:10:00 | H29: 終了時刻 | J29: 11:00:00
D30: リフト高 | F30: 3 | G30: m | H30: 打込み量 | J30: 70 | K30: m3 | L30: 打込み速度 | N30: 1 | O30: m/h
B31: 締固め | D31: ﾊﾞｲﾌﾞﾚｰﾀ台数 | F31: 3 | G31: 台 | H31: ﾊﾞｲﾌﾞﾚｰﾀ人数 | J31: 4 | K31: 人 | L31: ﾊﾞｲﾌﾞﾚｰﾀ予備 | N31: 1 | O31: 台
D32: ホース筒先 | F32: 1 | G32: 人
A34: ○コンクリート温度履歴
B35: 初期温度 | D35: 24 | E35: ℃ | F35: 最高温度 | H35: 48 | I35: ℃ | J35: 温度上昇量 | L35: =H35-D35 -> 24 | M35: ℃
B36: 最高温度に到達した時間 | F36: 30 | G36: 時間後
A38: ○養生
B39: 脱型日 | F39: 2017-06-05 | K39: 残置期間 | N39: =IF(OR($D$25="",$F$39-$D$25<=0),"",$F$39-$D$25) -> 11 | O39: 日
B40: 養生方法 | D40: 型枠面 | F40: 型枠＋ブルーシート
D41: 打込み面 | F41: 養生マット＋ブルーシート＋散水
B42: 養生（湿潤状態）期間 | F42: 7 | G42: 日

Sheet シート③④
O1: 記録シート③
A2: コンクリート打込み管理表（温度計測その1）
A3: ○基本情報
B4: 路線・河川・地区等 | D4: =IF(シート①!D5="","",シート①!D5) -> 県道○○号 ○○橋下部工事 | I4: 工期 | K4: =IF(シート①!K5="","",シート①!K5) -> 2017-04-01 | M4: ～ | N4: =IF(シート①!N5="","",シート①!N5) -> 2018-03-01
B5: 工事名 | D5: =IF(シート①!D6="","",シート①!D6) -> ○○○工事 | M5: 工区 | N5: =IF(シート①!N6="","",シート①!N6) -> 2
B6: 構造物名 | D6: =IF(シート①!D8="","",シート①!D8) -> ○○橋
B7: 構造物詳細 | D7: =IF(シート①!D9="","",シート①!D9) -> A1橋台 | I7: リフト名 | K7: =IF(シート①!K9="","",シート①!K9) -> 第2リフト
B9: 日時 | E9: 天気 | F9: 計測 時刻 | G9: ｺﾝｸﾘｰﾄ温度 | I9: 外気温 | K9: 備 考
B10: =IF(""<>シート②!D25,シート②!D25,"") -> 2017-05-25 | E10: 晴 | F10: 15:00:00 | G10: 38 | H10: ℃ | I10: 23 | J10: ℃ | T10: =G10 -> 38 | U10: =B10-$B$10+F10-$F$10 -> 0 | V10: =IF(I10=0,IF(I13=0,I9-(I9-I16)/(U9-U16)*(U9-U10),IF(I7=0,#REF!-(#REF!-I13)/(#REF!-U13)*(#REF!-U10),I9-(I9-I13)/(U9-U13)*(U9-U10))),I10) -> 23
T11: =IF(G11=0,T10,G11) -> 38 | U11: =IF(F11=0,U10,B10-$B$10+F11-$F$10) -> 0 | V11: =IF(I11=0,V10,I11) -> 23
B12: =IFERROR(IF(B10=0,0,IF(WEEKDAY(B10,2)=1,"(月)",IF(WEEKDAY(B10,2)=2,"(火)",IF(WEEKDAY(B10,2)=3,"(水)",IF(WEEKDAY(B10,2)=4,"(木)",IF(WEEKDAY(B10,2)=5,"(金)",IF(WEEKDAY(B10,2)=6,"(土)","(日)"))))))),"") -> (木) | T12: 38 | U12: =IF(F12=0,U11,B10-$B$10+F12-$F$10) -> 0 | V12: 23
B13: =IF(B10="","",B10+1) -> 2017-05-26 | D13: 朝 | E13: 晴 | F13: 08:00:00 | G13: 47 | H13: ℃ | I13: 22 | J13: ℃ | T13: 47 | U13: =IF(F13=0,U12,B13-$B$10+F13-$F$10) -> 0.7083333333 | V13: =IF(I13=0,V12,I13) -> 22
D14: 昼 | E14: 晴 | F14: 13:00:00 | G14: 47.5 | H14: ℃ | I14: 26 | J14: ℃ | T14: 47.5 | U14: =IF(F14=0,U13,B13-$B$10+F14-$F$10) -> 0.9166666667 | V14: 26
B15: =IF(B13="","",IF(WEEKDAY(B13,2)=1,"(月)",IF(WEEKDAY(B13,2)=2,"(火)",IF(WEEKDAY(B13,2)=3,"(水)",IF(WEEKDAY(B13,2)=4,"(木)",IF(WEEKDAY(B13,2)=5,"(金)",IF(WEEKDAY(B13,2)=6,"(土)","(日)"))))))) -> (金) | D15: 夕 | E15: 晴 | F15: 17:00:00 | G15: 48 | H15: ℃ | I15: 23 | J15: ℃ | T15: 48 | U15: =IF(F15=0,U14,B13-$B$10+F15-$F$10) -> 1.083333333 | V15: 23
B16: =IF(B13="","",B13+1) -> 2017-05-27 | D16: 朝 | E16: 晴 | F16: 08:00:00 | G16: 45 | H16: ℃ | I16: 22 | J16: ℃ | T16: 45 | U16: =IF(F16=0,U15,B16-$B$10+F16-$F$10) -> 1.708333333 | V16: 22
D17: 昼 | E17: 晴 | F17: 13:00:00 | G17: 43 | H17: ℃ | I17: 26 | J17: ℃ | T17: 43 | U17: =IF(F17=0,U16,B16-$B$10+F17-$F$10) -> 1.916666667 | V17: 26
B18: =IF(B16="","",IF(WEEKDAY(B16,2)=1,"(月)",IF(WEEKDAY(B16,2)=2,"(火)",IF(WEEKDAY(B16,2)=3,"(水)",IF(WEEKDAY(B16,2)=4,"(木)",IF(WEEKDAY(B16,2)=5,"(金)",IF(WEEKDAY(B16,2)=6,"(土)","(日)"))))))) -> (土) | D18: 夕 | E18: 晴 | F18: 17:00:00 | G18: 42 | H18: ℃ | I18: 23 | J18: ℃ | T18: 42 | U18: =IF(F18=0,U17,B16-$B$10+F18-$F$10) -> 2.083333333 | V18: 23
B19: =IF(B16="","",B16+1) -> 2017-05-28 | D19: 朝 | E19: 晴 | F19: 09:30:00 | G19: 38 | H19: ℃ | I19: 22 | J19: ℃ | T19: 38 | U19: =IF(F19=0,U18,B19-$B$10+F19-$F$10) -> 2.770833333 | V19: 22
D20: 昼 | E20: 晴 | H20: ℃ | J20: ℃ | T20: 38 | U20: =IF(F20=0,U19,B19-$B$10+F20-$F$10) -> 2.770833333 | V20: 22
B21: =IF(B19="","",IF(WEEKDAY(B19,2)=1,"(月)",IF(WEEKDAY(B19,2)=2,"(火)",IF(WEEKDAY(B19,2)=3,"(水)",IF(WEEKDAY(B19,2)=4,"(木)",IF(WEEKDAY(B19,2)=5,"(金)",IF(WEEKDAY(B19,2)=6,"(土)","(日)"))))))) -> (日) | D21: 夕 | E21: 晴 | H21: ℃ | J21: ℃ | T21: 38 | U21: =IF(F21=0,U20,B19-$B$10+F21-$F$10) -> 2.770833333 | V21: 22
B22: =IF(B19="","",B19+1) -> 2017-05-29 | D22: 朝 | E22: 晴 | F22: 08:00:00 | G22: 30 | H22: ℃ | I22: 22 | J22: ℃ | T22: 30 | U22: =IF(F22=0,U21,B22-$B$10+F22-$F$10) -> 3.708333333 | V22: 22
D23: 昼 | E23: 晴 | F23: 13:00:00 | G23: 29 | H23: ℃ | I23: 26 | J23: ℃ | T23: 29 | U23: =IF(F23=0,U22,B22-$B$10+F23-$F$10) -> 3.916666667 | V23: 26
B24: =IF(B22="","",IF(WEEKDAY(B22,2)=1,"(月)",IF(WEEKDAY(B22,2)=2,"(火)",IF(WEEKDAY(B22,2)=3,"(水)",IF(WEEKDAY(B22,2)=4,"(木)",IF(WEEKDAY(B22,2)=5,"(金)",IF(WEEKDAY(B22,2)=6,"(土)","(日)"))))))) -> (月) | D24: 夕 | E24: 晴 | F24: 17:00:00 | G24: 28 | H24: ℃ | I24: 23 | J24: ℃ | T24: 28 | U24: =IF(F24=0,U23,B22-$B$10+F24-$F$10) -> 4.083333333 | V24: 23
B25: =IF(B22="","",B22+1) -> 2017-05-30 | D25: 朝 | E25: 晴 | F25: 08:00:00 | G25: 27 | H25: ℃ | I25: 22 | J25: ℃ | T25: 27 | U25: =IF(F25=0,U24,B25-$B$10+F25-$F$10) -> 4.708333333 | V25: 22
D26: 昼 | E26: 晴 | F26: 13:00:00 | G26: 26.5 | H26: ℃ | I26: 26 | J26: ℃ | T26: 26.5 | U26: =IF(F26=0,U25,B25-$B$10+F26-$F$10) -> 4.916666667 | V26: 26
B27: =IF(B25="","",IF(WEEKDAY(B25,2)=1,"(月)",IF(WEEKDAY(B25,2)=2,"(火)",IF(WEEKDAY(B25,2)=3,"(水)",IF(WEEKDAY(B25,2)=4,"(木)",IF(WEEKDAY(B25,2)=5,"(金)",IF(WEEKDAY(B25,2)=6,"(土)","(日)"))))))) -> (火) | D27: 夕 | E27: 晴 | F27: 17:00:00 | G27: 26 | H27: ℃ | I27: 23 | J27: ℃ | T27: 26 | U27: =IF(F27=0,U26,B25-$B$10+F27-$F$10) -> 5.083333333 | V27: 23
B28: =IF(B25="","",B25+1) -> 2017-05-31 | D28: 朝 | E28: 晴 | F28: 08:00:00 | G28: 25.5 | H28: ℃ | I28: 22 | J28: ℃ | T28: 25.5 | U28: =IF(F28=0,U27,B28-$B$10+F28-$F$10) -> 5.708333333 | V28: 22
D29: 昼 | E29: 晴 | F29: 13:00:00 | G29: 25 | H29: ℃ | I29: 26 | J29: ℃ | T29: 25 | U29: =IF(F29=0,U28,B28-$B$10+F29-$F$10) -> 5.916666667 | V29: 26
B30: =IF(B28="","",IF(WEEKDAY(B28,2)=1,"(月)",IF(WEEKDAY(B28,2)=2,"(火)",IF(WEEKDAY(B28,2)=3,"(水)",IF(WEEKDAY(B28,2)=4,"(木)",IF(WEEKDAY(B28,2)=5,"(金)",IF(WEEKDAY(B28,2)=6,"(土)","(日)"))))))) -> (水) | D30: 夕 | E30: 晴 | F30: 17:00:00 | G30: 24.5 | H30: ℃ | I30: 23 | J30: ℃ | T30: 24.5 | U30: =IF(F30=0,U29,B28-$B$10+F30-$F$10) -> 6.083333333 | V30: 23
B31: =IF(B28="","",B28+1) -> 2017-06-01 | D31: 朝 | E31: 晴 | F31: 08:00:00 | G31: 24 | H31: ℃ | I31: 23 | J31: ℃ | T31: 24 | U31: =IF(F31=0,U30,B31-$B$10+F31-$F$10) -> 6.708333333 | V31: 23
D32: 昼 | E32: 晴 | F32: 13:00:00 | G32: 23.9 | H32: ℃ | I32: 27 | J32: ℃ | T32: 23.9 | U32: =IF(F32=0,U31,B31-$B$10+F32-$F$10) -> 6.916666667 | V32: 27
B33: =IF(B31="","",IF(WEEKDAY(B31,2)=1,"(月)",IF(WEEKDAY(B31,2)=2,"(火)",IF(WEEKDAY(B31,2)=3,"(水)",IF(WEEKDAY(B31,2)=4,"(木)",IF(WEEKDAY(B31,2)=5,"(金)",IF(WEEKDAY(B31,2)=6,"(土)","(日)"))))))) -> (木) | D33: 夕 | E33: 晴 | F33: 17:00:00 | G33: 23.8 | H33: ℃ | I33: 24 | J33: ℃ | T33: 23.8 | U33: =IF(F33=0,U32,B31-$B$10+F33-$F$10) -> 7.083333333 | V33: 24
B34: =IF(B31="","",B31+1) -> 2017-06-02 | D34: 朝 | E34: 晴 | F34: 08:00:00 | G34: 23.7 | H34: ℃ | I34: 23 | J34: ℃ | T34: 23.7 | U34: =IF(F34=0,U33,B34-$B$10+F34-$F$10) -> 7.708333333 | V34: 23
D35: 昼 | E35: 晴 | F35: 13:00:00 | G35: 23.6 | H35: ℃ | I35: 27 | J35: ℃ | T35: 23.6 | U35: =IF(F35=0,U34,B34-$B$10+F35-$F$10) -> 7.916666667 | V35: 27
B36: =IF(B34="","",IF(WEEKDAY(B34,2)=1,"(月)",IF(WEEKDAY(B34,2)=2,"(火)",IF(WEEKDAY(B34,2)=3,"(水)",IF(WEEKDAY(B34,2)=4,"(木)",IF(WEEKDAY(B34,2)=5,"(金)",IF(WEEKDAY(B34,2)=6,"(土)","(日)"))))))) -> (金) | D36: 夕 | E36: 晴 | F36: 17:00:00 | G36: 23.5 | H36: ℃ | I36: 24 | J36: ℃ | T36: 23.5 | U36: =IF(F36=0,U35,B34-$B$10+F36-$F$10) -> 8.083333333 | V36: 24
B37: =IF(B34="","",B34+1) -> 2017-06-03 | D37: 朝 | H37: ℃ | J37: ℃ | T37: 23.5 | U37: =IF(F37=0,U36,B37-$B$10+F37-$F$10) -> 8.083333333 | V37: 24
D38: 昼 | H38: ℃ | J38: ℃ | T38: 23.5 | U38: =IF(F38=0,U37,B37-$B$10+F38-$F$10) -> 8.083333333 | V38: 24
B39: =IF(B37="","",IF(WEEKDAY(B37,2)=1,"(月)",IF(WEEKDAY(B37,2)=2,"(火)",IF(WEEKDAY(B37,2)=3,"(水)",IF(WEEKDAY(B37,2)=4,"(木)",IF(WEEKDAY(B37,2)=5,"(金)",IF(WEEKDAY(B37,2)=6,"(土)","(日)"))))))) -> (土) | D39: 夕 | H39: ℃ | J39: ℃ | T39: 23.5 | U39: =IF(F39=0,U38,B37-$B$10+F39-$F$10) -> 8.083333333 | V39: 24
B40: =IF(B37="","",B37+1) -> 2017-06-04 | D40: 朝 | H40: ℃ | J40: ℃ | T40: 23.5 | U40: =IF(F40=0,U39,B40-$B$10+F40-$F$10) -> 8.083333333 | V40: 24
D41: 昼 | H41: ℃ | J41: ℃ | T41: 23.5 | U41: =IF(F41=0,U40,B40-$B$10+F41-$F$10) -> 8.083333333 | V41: 24
B42: =IF(B40="","",IF(WEEKDAY(B40,2)=1,"(月)",IF(WEEKDAY(B40,2)=2,"(火)",IF(WEEKDAY(B40,2)=3,"(水)",IF(WEEKDAY(B40,2)=4,"(木)",IF(WEEKDAY(B40,2)=5,"(金)",IF(WEEKDAY(B40,2)=6,"(土)","(日)"))))))) -> (日) | D42: 夕 | H42: ℃ | J42: ℃ | T42: 23.5 | U42: =IF(F42=0,U41,B40-$B$10+F42-$F$10) -> 8.083333333 | V42: 24
B43: =IF(B40="","",B40+1) -> 2017-06-05 | D43: 朝 | E43: 晴 | F43: 08:00:00 | G43: 22.8 | H43: ℃ | I43: 23 | J43: ℃ | T43: 22.8 | U43: =IF(F43=0,U42,B43-$B$10+F43-$F$10) -> 10.70833333 | V43: 23
D44: 昼 | E44: 晴 | F44: 13:00:00 | G44: 22.7 | H44: ℃ | I44: 27 | J44: ℃ | T44: 22.7 | U44: =IF(F44=0,U43,B43-$B$10+F44-$F$10) -> 10.91666667 | V44: 27
B45: =IF(B43="","",IF(WEEKDAY(B43,2)=1,"(月)",IF(WEEKDAY(B43,2)=2,"(火)",IF(WEEKDAY(B43,2)=3,"(水)",IF(WEEKDAY(B43,2)=4,"(木)",IF(WEEKDAY(B43,2)=5,"(金)",IF(WEEKDAY(B43,2)=6,"(土)","(日)"))))))) -> (月) | D45: 夕 | E45: 晴 | F45: 17:00:00 | G45: 22.6 | H45: ℃ | I45: 24 | J45: ℃ | T45: 22.6 | U45: =IF(F45=0,U44,B43-$B$10+F45-$F$10) -> 11.08333333 | V45: 24
B46: =IF(B43="","",B43+1) -> 2017-06-06 | D46: 朝 | E46: 晴 | F46: 08:00:00 | G46: 22.5 | H46: ℃ | I46: 23 | J46: ℃ | T46: 22.5 | U46: =IF(F46=0,U45,B46-$B$10+F46-$F$10) -> 11.70833333 | V46: 23
D47: 昼 | E47: 晴 | F47: 13:00:00 | G47: 22.4 | H47: ℃ | I47: 27 | J47: ℃ | T47: 22.4 | U47: =IF(F47=0,U46,B46-$B$10+F47-$F$10) -> 11.91666667 | V47: 27
B48: =IF(B46="","",IF(WEEKDAY(B46,2)=1,"(月)",IF(WEEKDAY(B46,2)=2,"(火)",IF(WEEKDAY(B46,2)=3,"(水)",IF(WEEKDAY(B46,2)=4,"(木)",IF(WEEKDAY(B46,2)=5,"(金)",IF(WEEKDAY(B46,2)=6,"(土)","(日)"))))))) -> (火) | D48: 夕 | E48: 晴 | F48: 17:00:00 | G48: 22.3 | H48: ℃ | I48: 24 | J48: ℃ | T48: 22.3 | U48: =IF(F48=0,U47,B46-$B$10+F48-$F$10) -> 12.08333333 | V48: 24
B49: =IF(B46="","",B46+1) -> 2017-06-07 | D49: 朝 | E49: 晴 | F49: 08:00:00 | G49: 22.2 | H49: ℃ | I49: 23 | J49: ℃ | T49: 22.2 | U49: =IF(F49=0,U48,B49-$B$10+F49-$F$10) -> 12.70833333 | V49: 23
D50: 昼 | E50: 晴 | F50: 13:00:00 | G50: 22.1 | H50: ℃ | I50: 27 | J50: ℃ | T50: 22.1 | U50: =IF(F50=0,U49,B49-$B$10+F50-$F$10) -> 12.91666667 | V50: 27
B51: =IF(B49="","",IF(WEEKDAY(B49,2)=1,"(月)",IF(WEEKDAY(B49,2)=2,"(火)",IF(WEEKDAY(B49,2)=3,"(水)",IF(WEEKDAY(B49,2)=4,"(木)",IF(WEEKDAY(B49,2)=5,"(金)",IF(WEEKDAY(B49,2)=6,"(土)","(日)"))))))) -> (水) | D51: 夕 | E51: 晴 | F51: 17:00:00 | G51: 22 | H51: ℃ | I51: 24 | J51: ℃ | T51: 22 | U51: =IF(F51=0,U50,B49-$B$10+F51-$F$10) -> 13.08333333 | V51: 24
B52: =IF(B49="","",B49+1) -> 2017-06-08 | D52: 朝 | E52: 晴 | F52: 08:00:00 | G52: 21.9 | H52: ℃ | I52: 23 | J52: ℃ | T52: 21.9 | U52: =IF(F52=0,U51,B52-$B$10+F52-$F$10) -> 13.70833333 | V52: 23
D53: 昼 | E53: 晴 | F53: 13:00:00 | G53: 21.8 | H53: ℃ | I53: 28 | J53: ℃ | T53: 21.8 | U53: =IF(F53=0,U52,B52-$B$10+F53-$F$10) -> 13.91666667 | V53: 28
D54: 夕 | E54: 晴 | F54: 17:00:00 | G54: 21.7 | H54: ℃ | I54: 25 | J54: ℃ | T54: 21.7 | U54: =IF(F54=0,U53,B52-$B$10+F54-$F$10) -> 14.08333333 | V54: 25
B55: =IF(B52="","",B52+1) -> 2017-06-09 | D55: 朝 | E55: 晴 | F55: 08:00:00 | G55: 21.6 | H55: ℃ | I55: 23 | J55: ℃ | T55: 21.6 | U55: =IF(F55=0,U54,B55-$B$10+F55-$F$10) -> 14.70833333 | V55: 23
D56: 昼 | E56: 晴 | F56: 13:00:00 | G56: 21.5 | H56: ℃ | I56: 28 | J56: ℃ | T56: 21.5 | U56: =IF(F56=0,U55,B55-$B$10+F56-$F$10) -> 14.91666667 | V56: 28
B57: =IF(B55="","",IF(WEEKDAY(B55,2)=1,"(月)",IF(WEEKDAY(B55,2)=2,"(火)",IF(WEEKDAY(B55,2)=3,"(水)",IF(WEEKDAY(B55,2)=4,"(木)",IF(WEEKDAY(B55,2)=5,"(金)",IF(WEEKDAY(B55,2)=6,"(土)","(日)"))))))) -> (金) | D57: 夕 | E57: 晴 | F57: 17:00:00 | G57: 21.4 | H57: ℃ | I57: 25 | J57: ℃ | T57: 21.4 | U57: =IF(F57=0,U56,B55-$B$10+F57-$F$10) -> 15.08333333 | V57: 25
B58: =IF(B55="","",B55+1) -> 2017-06-10 | D58: 朝 | E58: 晴 | F58: 08:00:00 | G58: 21.3 | H58: ℃ | I58: 23 | J58: ℃ | T58: =IF(G58=0,T57,G58) -> 21.3 | U58: =IF(F58=0,U57,B58-$B$10+F58-$F$10) -> 15.70833333 | V58: 23
D59: 昼 | E59: 晴 | F59: 13:00:00 | G59: 21.4 | H59: ℃ | I59: 28 | J59: ℃ | T59: 21.4 | U59: =IF(F59=0,U58,B58-$B$10+F59-$F$10) -> 15.91666667 | V59: 28
B60: =IF(B58="","",IF(WEEKDAY(B58,2)=1,"(月)",IF(WEEKDAY(B58,2)=2,"(火)",IF(WEEKDAY(B58,2)=3,"(水)",IF(WEEKDAY(B58,2)=4,"(木)",IF(WEEKDAY(B58,2)=5,"(金)",IF(WEEKDAY(B58,2)=6,"(土)","(日)"))))))) -> (土) | D60: 夕 | E60: 晴 | F60: 17:00:00 | G60: 21.5 | H60: ℃ | I60: 25 | J60: ℃ | T60: 21.5 | U60: =IF(F60=0,U59,B58-$B$10+F60-$F$10) -> 16.08333333 | V60: =IF(I60=0,V59,I60) -> 25
B61: =IF(B58="","",B58+1) -> 2017-06-11 | D61: 朝 | H61: ℃ | J61: ℃ | T61: 21.5 | U61: =IF(F61=0,U60,B61-$B$10+F61-$F$10) -> 16.08333333 | V61: =IF(I61=0,V60,I61) -> 25
D62: 昼 | H62: ℃ | J62: ℃ | T62: 21.5 | U62: =IF(F62=0,U61,B61-$B$10+F62-$F$10) -> 16.08333333 | V62: =IF(I62=0,V61,I62) -> 25
B63: =IF(B61="","",IF(WEEKDAY(B61,2)=1,"(月)",IF(WEEKDAY(B61,2)=2,"(火)",IF(WEEKDAY(B61,2)=3,"(水)",IF(WEEKDAY(B61,2)=4,"(木)",IF(WEEKDAY(B61,2)=5,"(金)",IF(WEEKDAY(B61,2)=6,"(土)","(日)"))))))) -> (日) | D63: 夕 | H63: ℃ | J63: ℃ | T63: =IF(G63=0,T62,G63) -> 21.5 | U63: =IF(F63=0,U62,B61-$B$10+F63-$F$10) -> 16.08333333 | V63: =IF(I63=0,V62,I63) -> 25
O64: 記録シート④ | T64: =IF(G73=0,T63,G73) -> 21.9 | U64: =IF(F73=0,U63,B73-$B$10+F82-$F$10) -> 17.70833333 | V64: =IF(I73=0,V63,I73) -> 23
A65: コンクリート打込み管理表（温度計測その2） | T65: 21.9 | U65: =IF(F74=0,U64,B73-$B$10+F74-$F$10) -> 17.70833333 | V65: 23
A66: ○基本情報 | T66: 21.9 | U66: =IF(F75=0,U65,B73-$B$10+F75-$F$10) -> 17.70833333 | V66: 23
B67: 路線・河川・地区等 | D67: =D4 -> 県道○○号 ○○橋下部工事 | I67: 工期 | K67: =K4 -> 2017-04-01 | M67: ～ | N67: =N4 -> 2018-03-01 | T67: 22 | U67: =IF(F76=0,U66,B76-$B$10+F76-$F$10) -> 18.70833333 | V67: 23
B68: 工事名 | D68: =D5 -> ○○○工事 | M68: 工区 | N68: =N5 -> 2 | T68: 22 | U68: =IF(F77=0,U67,B76-$B$10+F77-$F$10) -> 18.70833333 | V68: 23
B69: 構造物名 | D69: =D6 -> ○○橋 | T69: 22 | U69: =IF(F78=0,U68,B76-$B$10+F78-$F$10) -> 18.70833333 | V69: 23
B70: 構造物詳細 | D70: =D7 -> A1橋台 | I70: リフト名 | K70: =K7 -> 第2リフト | T70: 22 | U70: =IF(F79=0,U69,B79-$B$10+F79-$F$10) -> 19.70833333 | V70: 23
T71: 22 | U71: =IF(F80=0,U70,B79-$B$10+F80-$F$10) -> 19.70833333 | V71: 23
B72: 日時 | E72: 天気 | F72: 計測 時刻 | G72: ｺﾝｸﾘｰﾄ温度 | I72: 外気温 | K72: 備 考 | T72: 22 | U72: =IF(F81=0,U71,B79-$B$10+F81-$F$10) -> 19.70833333 | V72: 23
B73: =IF(B61="","",B61+1) -> 2017-06-12 | D73: 朝 | E73: 晴 | F73: 08:00:00 | G73: 21.9 | H73: ℃ | I73: 23 | J73: ℃ | T73: 22 | U73: =IF(F82=0,U72,B82-$B$10+F82-$F$10) -> 20.70833333 | V73: 23
D74: 昼 | H74: ℃ | J74: ℃ | T74: 22 | U74: =IF(F83=0,U73,B82-$B$10+F83-$F$10) -> 20.70833333 | V74: 23
B75: =IF(B73="","",IF(WEEKDAY(B73,2)=1,"(月)",IF(WEEKDAY(B73,2)=2,"(火)",IF(WEEKDAY(B73,2)=3,"(水)",IF(WEEKDAY(B73,2)=4,"(木)",IF(WEEKDAY(B73,2)=5,"(金)",IF(WEEKDAY(B73,2)=6,"(土)","(日)"))))))) -> (月) | D75: 夕 | H75: ℃ | J75: ℃ | T75: 22 | U75: =IF(F84=0,U74,B82-$B$10+F84-$F$10) -> 20.70833333 | V75: 23
B76: =IF(B73="","",B73+1) -> 2017-06-13 | D76: 朝 | E76: 晴 | F76: 08:00:00 | G76: 22 | H76: ℃ | I76: 23 | J76: ℃ | T76: 22 | U76: =IF(F85=0,U75,B85-$B$10+F85-$F$10) -> 21.70833333 | V76: 23
D77: 昼 | H77: ℃ | J77: ℃ | T77: 22 | U77: =IF(F86=0,U76,B85-$B$10+F86-$F$10) -> 21.70833333 | V77: 23
B78: =IF(B76="","",IF(WEEKDAY(B76,2)=1,"(月)",IF(WEEKDAY(B76,2)=2,"(火)",IF(WEEKDAY(B76,2)=3,"(水)",IF(WEEKDAY(B76,2)=4,"(木)",IF(WEEKDAY(B76,2)=5,"(金)",IF(WEEKDAY(B76,2)=6,"(土)","(日)"))))))) -> (火) | D78: 夕 | H78: ℃ | J78: ℃ | T78: 22 | U78: =IF(F87=0,U77,B85-$B$10+F87-$F$10) -> 21.70833333 | V78: 23
B79: =IF(B76="","",B76+1) -> 2017-06-14 | D79: 朝 | E79: 晴 | F79: 08:00:00 | G79: 22 | H79: ℃ | I79: 23 | J79: ℃ | T79: 22 | U79: =IF(F88=0,U78,B88-$B$10+F88-$F$10) -> 21.70833333 | V79: 23
D80: 昼 | H80: ℃ | J80: ℃ | T80: 22 | U80: =IF(F89=0,U79,B88-$B$10+F89-$F$10) -> 21.70833333 | V80: 23
B81: =IF(B79="","",IF(WEEKDAY(B79,2)=1,"(月)",IF(WEEKDAY(B79,2)=2,"(火)",IF(WEEKDAY(B79,2)=3,"(水)",IF(WEEKDAY(B79,2)=4,"(木)",IF(WEEKDAY(B79,2)=5,"(金)",IF(WEEKDAY(B79,2)=6,"(土)","(日)"))))))) -> (水) | D81: 夕 | H81: ℃ | J81: ℃ | T81: 22 | U81: =IF(F90=0,U80,B88-$B$10+F90-$F$10) -> 21.70833333 | V81: 23
B82: =IF(B79="","",B79+1) -> 2017-06-15 | D82: 朝 | E82: 晴 | F82: 08:00:00 | G82: 22 | H82: ℃ | I82: 23 | J82: ℃ | T82: 22 | U82: =IF(F91=0,U81,B91-$B$10+F91-$F$10) -> 21.70833333 | V82: 23
D83: 昼 | H83: ℃ | J83: ℃ | T83: 22 | U83: =IF(F92=0,U82,B91-$B$10+F92-$F$10) -> 21.70833333 | V83: 23
B84: =IF(B82="","",IF(WEEKDAY(B82,2)=1,"(月)",IF(WEEKDAY(B82,2)=2,"(火)",IF(WEEKDAY(B82,2)=3,"(水)",IF(WEEKDAY(B82,2)=4,"(木)",IF(WEEKDAY(B82,2)=5,"(金)",IF(WEEKDAY(B82,2)=6,"(土)","(日)"))))))) -> (木) | D84: 夕 | H84: ℃ | J84: ℃ | T84: 22 | U84: =IF(F93=0,U83,B91-$B$10+F93-$F$10) -> 21.70833333 | V84: 23
B85: =IF(B82="","",B82+1) -> 2017-06-16 | D85: 朝 | E85: 晴 | F85: 08:00:00 | G85: 22 | H85: ℃ | I85: 23 | J85: ℃ | T85: 22.3 | U85: =IF(F94=0,U84,B94-$B$10+F94-$F$10) -> 24.70833333 | V85: 23.5
D86: 昼 | H86: ℃ | J86: ℃ | T86: 22.3 | U86: =IF(F95=0,U85,B94-$B$10+F95-$F$10) -> 24.70833333 | V86: 23.5
B87: =IF(B85="","",IF(WEEKDAY(B85,2)=1,"(月)",IF(WEEKDAY(B85,2)=2,"(火)",IF(WEEKDAY(B85,2)=3,"(水)",IF(WEEKDAY(B85,2)=4,"(木)",IF(WEEKDAY(B85,2)=5,"(金)",IF(WEEKDAY(B85,2)=6,"(土)","(日)"))))))) -> (金) | D87: 夕 | H87: ℃ | J87: ℃ | T87: 22.3 | U87: =IF(F96=0,U86,B94-$B$10+F96-$F$10) -> 24.70833333 | V87: 23.5
B88: =IF(B85="","",B85+1) -> 2017-06-17 | D88: 朝 | H88: ℃ | J88: ℃ | T88: 22.4 | U88: =IF(F97=0,U87,B97-$B$10+F97-$F$10) -> 25.70833333 | V88: 23.5
D89: 昼 | H89: ℃ | J89: ℃ | T89: 22.4 | U89: =IF(F98=0,U88,B97-$B$10+F98-$F$10) -> 25.70833333 | V89: 23.5
B90: =IF(B88="","",IF(WEEKDAY(B88,2)=1,"(月)",IF(WEEKDAY(B88,2)=2,"(火)",IF(WEEKDAY(B88,2)=3,"(水)",IF(WEEKDAY(B88,2)=4,"(木)",IF(WEEKDAY(B88,2)=5,"(金)",IF(WEEKDAY(B88,2)=6,"(土)","(日)"))))))) -> (土) | D90: 夕 | H90: ℃ | J90: ℃ | T90: 22.4 | U90: =IF(F99=0,U89,B97-$B$10+F99-$F$10) -> 25.70833333 | V90: 23.5
B91: =IF(B88="","",B88+1) -> 2017-06-18 | D91: 朝 | H91: ℃ | J91: ℃ | T91: 22.5 | U91: =IF(F100=0,U90,B100-$B$10+F100-$F$10) -> 26.70833333 | V91: 23.5
D92: 昼 | H92: ℃ | J92: ℃ | T92: 22.5 | U92: =IF(F101=0,U91,B100-$B$10+F101-$F$10) -> 26.70833333 | V92: 23.5
B93: =IF(B91="","",IF(WEEKDAY(B91,2)=1,"(月)",IF(WEEKDAY(B91,2)=2,"(火)",IF(WEEKDAY(B91,2)=3,"(水)",IF(WEEKDAY(B91,2)=4,"(木)",IF(WEEKDAY(B91,2)=5,"(金)",IF(WEEKDAY(B91,2)=6,"(土)","(日)"))))))) -> (日) | D93: 夕 | H93: ℃ | J93: ℃ | T93: 22.5 | U93: =IF(F102=0,U92,B100-$B$10+F102-$F$10) -> 26.70833333 | V93: 23.5
B94: =IF(B91="","",B91+1) -> 2017-06-19 | D94: 朝 | E94: 晴 | F94: 08:00:00 | G94: 22.3 | H94: ℃ | I94: 23.5 | J94: ℃
D95: 昼 | H95: ℃ | J95: ℃
B96: =IF(B94="","",IF(WEEKDAY(B94,2)=1,"(月)",IF(WEEKDAY(B94,2)=2,"(火)",IF(WEEKDAY(B94,2)=3,"(水)",IF(WEEKDAY(B94,2)=4,"(木)",IF(WEEKDAY(B94,2)=5,"(金)",IF(WEEKDAY(B94,2)=6,"(土)","(日)"))))))) -> (月) | D96: 夕 | H96: ℃ | J96: ℃
B97: =IF(B94="","",B94+1) -> 2017-06-20 | D97: 朝 | E97: 晴 | F97: 08:00:00 | G97: 22.4 | H97: ℃ | I97: 23.5 | J97: ℃
D98: 昼 | H98: ℃ | J98: ℃
B99: =IF(B97="","",IF(WEEKDAY(B97,2)=1,"(月)",IF(WEEKDAY(B97,2)=2,"(火)",IF(WEEKDAY(B97,2)=3,"(水)",IF(WEEKDAY(B97,2)=4,"(木)",IF(WEEKDAY(B97,2)=5,"(金)",IF(WEEKDAY(B97,2)=6,"(土)","(日)"))))))) -> (火) | D99: 夕 | H99: ℃ | J99: ℃
B100: =IF(B97="","",B97+1) -> 2017-06-21 | D100: 朝 | E100: 晴 | F100: 08:00:00 | G100: 22.5 | H100: ℃ | I100: 23.5 | J100: ℃
D101: 昼 | H101: ℃ | J101: ℃
B102: =IF(B100="","",IF(WEEKDAY(B100,2)=1,"(月)",IF(WEEKDAY(B100,2)=2,"(火)",IF(WEEKDAY(B100,2)=3,"(水)",IF(WEEKDAY(B100,2)=4,"(木)",IF(WEEKDAY(B100,2)=5,"(金)",IF(WEEKDAY(B100,2)=6,"(土)","(日)"))))))) -> (水) | D102: 夕 | H102: ℃ | J102: ℃
B104: コンクリート温度・外気温計測結果

Sheet シート⑤
O1: 記録シート⑤
B2: ひび割れ調査票（その1）
A3: ○基本情報
B4: 路線・河川・地区等 | D4: =IF(シート①!D5="","",シート①!D5) -> 県道○○号 ○○橋下部工事 | I4: 工期 | K4: =IF(シート①!K5="","",シート①!K5) -> 2017-04-01 | M4: ～ | N4: =IF(シート①!N5="","",シート①!N5) -> 2018-03-01
B5: 工事名 | D5: =IF(シート①!D6="","",シート①!D6) -> ○○○工事 | M5: 工区 | N5: =IF(シート①!N6="","",シート①!N6) -> 2
B6: 構造物名 | D6: =IF(シート①!D8="","",シート①!D8) -> ○○橋
B7: 構造物詳細 | D7: =IF(シート①!D9="","",シート①!D9) -> A1橋台 | I7: リフト名 | K7: =IF(シート①!K9="","",シート①!K9) -> 第2リフト
A9: ○ひび割れの有無
B10: ひび割れの有無 | E10: 有
A12: ○ひび割れ概要

Sheet シート⑥
O1: 記録シート⑥
B2: ひび割れ調査票（その2）
A3: ○基本情報
B4: 路線・河川・地区等 | D4: =IF(シート①!D5="","",シート①!D5) -> 県道○○号 ○○橋下部工事 | I4: 工期 | K4: =IF(シート①!K5="","",シート①!K5) -> 2017-04-01 | M4: ～ | N4: =IF(シート①!N5="","",シート①!N5) -> 2018-03-01
B5: 工事名 | D5: =IF(シート①!D6="","",シート①!D6) -> ○○○工事 | M5: 工区 | N5: =IF(シート①!N6="","",シート①!N6) -> 2
B6: 構造物名 | D6: =IF(シート①!D8="","",シート①!D8) -> ○○橋
B7: 構造物詳細 | D7: =IF(シート①!D9="","",シート①!D9) -> A1橋台 | I7: リフト名 | K7: =IF(シート①!K9="","",シート①!K9) -> 第2リフト
A9: ○ひび割れ状況
B10: ひび割れ | C10: No. | E10: No.1 | F10: No.2 | G10: No.3 | H10: No.4 | I10: No.5 | J10: No.6 | K10: No.7 | L10: No.8 | M10: No.9 | N10: No.10 | O10: No.11
C11: 位置 | E11: 正面
C12: 形状 | E12: 貫通
C13: 方向 | E13: 鉛直
B14: 調査日 | C14: 2017-06-05 | E14: 0.15
C15: 2017-06-12 | E15: 0.15
C16: 2017-06-19 | E16: 0.15
C17: 2017-06-26 | E17: 0.2
C18: 2017-07-03 | E18: 0.25
C26: 備考
B28: 補修 | C28: 補修の有無 | E28: 有
C29: 補修日 | E29: 2017-07-25
C30: 補修方法 | E30: 注入
C31: 備考 | E31: 軟質系エポキシ樹脂注入

Sheet シート⑦
O1: 記録シート⑦
B2: 設計，施工対比確認表（その1）
A3: ○基本情報
B4: 路線・河川・地区等 | D4: =IF(シート①!D5="","",シート①!D5) -> 県道○○号 ○○橋下部工事 | I4: 工期 | K4: =IF(シート①!K5="","",シート①!K5) -> 2017-04-01 | M4: ～ | N4: =IF(シート①!N5="","",シート①!N5) -> 2018-03-01
B5: 工事名 | D5: =IF(シート①!D6="","",シート①!D6) -> ○○○工事 | M5: 工区 | N5: =IF(シート①!N6="","",シート①!N6) -> 2
B6: 構造物名 | D6: =IF(シート①!D8="","",シート①!D8) -> ○○橋
B7: 構造物詳細 | D7: =IF(シート①!D9="","",シート①!D9) -> A1橋台 | I7: リフト名 | K7: =IF(シート①!K9="","",シート①!K9) -> 第2リフト
A9: ○確実な充填
B10: 項目 | F10: 設計 | I10: 施工 | L10: 備考
B11: 最小鉄筋間隔 | H11: mm | K11: mm | L11: 打込みに影響するもの
B12: 最小スランプ | H12: cm | K12: cm | L12: 設計値/想定値
B13: 発注スランプ | H13: cm | K13: cm | L13: 設計値/実際
B14: 流動化剤の後添加有無
B15: 打込み時の一時鉄筋移動
B16: コンクリートの施工性 | L16: 施工者の評価
B17: 初期欠陥の 有無/程度 | D17: 豆板 | L17: 有無/程度
D18: ｺｰﾙﾄﾞｼﾞｮｲﾝﾄ
D19: 沈みひび割れ
B20: 補修の有無/方法 | L20: 有無/方法
A22: ○ひび割れ抑制
B23: 項目 | F23: 設計 | I23: 施工 | L23: 備考
B24: 温度ひび割れ検討 | L24: 対象/対象外
B25: 温度ひび割れ幅の限界値 | H25: mm | K25: mm
B26: 照査方法
B27: 条件 | C27: 打込み時期
C28: 打込み温度
C29: 外気温
C30: リフト高 | H30: m | K30: m
C31: セメントの種類
C32: 断熱温度上昇特性
B33: 結果 | C33: ひび割れ指数
C34: 最大ひび割れ幅 | H34: mm | K34: mm
C35: 最高温度 | H35: ℃ | K35: ℃
C36: ひび割れ抑制対策
C37: 補修の有無/方法 | L37: 有無/方法
A39: ○かぶり（厚さ）の確保
B40: 項目 | F40: 設計 | I40: 施工 | L40: 備考
B41: 最小かぶり※1 | H41: mm | K41: mm
B42: 誤差の想定値※2 | H42: mm | K42: mm
B43: ※1：施工は非破壊試験査による実測値
B44: ※2：施工は非破壊試験の測定誤差の想定値

Sheet シート⑧
O1: 記録シート⑧
B2: 設計，施工対比確認表（その2）
A3: ○基本情報
B4: 路線・河川・地区等 | D4: =IF(シート①!D5="","",シート①!D5) -> 県道○○号 ○○橋下部工事 | I4: 工期 | K4: =IF(シート①!K5="","",シート①!K5) -> 2017-04-01 | M4: ～ | N4: =IF(シート①!N5="","",シート①!N5) -> 2018-03-01
B5: 工事名 | D5: =IF(シート①!D6="","",シート①!D6) -> ○○○工事 | M5: 工区 | N5: =IF(シート①!N6="","",シート①!N6) -> 2
B6: 構造物名 | D6: =IF(シート①!D8="","",シート①!D8) -> ○○橋
B7: 構造物詳細 | D7: =IF(シート①!D9="","",シート①!D9) -> A1橋台 | I7: リフト名 | K7: =IF(シート①!K9="","",シート①!K9) -> 第2リフト
A9: ○密実性確保
B10: 項目 | F10: 設計 | I10: 施工 | L10: 備考
B11: 環境条件
B12: セメントの種類
B13: 水セメント比
B14: 空気量 | H14: % | K14: %
B15: 養生方法
A17: ○排水・防水対策
B18: 項目 | F18: 設計 | I18: 施工 | L18: 備考
B19: 防水対策の有無
B20: セメントの種類

Sheet 施工状況把握チェックシート
A1: 【 群 馬 県 ： 施 工 状 況 把 握 チ ェ ッ ク シ ー ト（ コ ン ク リ ー ト 打 込 み 時）】
A3: 事務所名 | C3: =IF(COUNTBLANK(シート①!D4)>0,"",シート①!D4) -> 前橋土木事務所 | G3: 工事名 | I3: =IF(COUNTBLANK(シート①!D6)>0,"",シート①!D6) -> ○○○工事 | M3: 工区 | N3: =IF(COUNTBLANK(シート①!N6)>0,"",シート①!N6) -> 2
A4: 構造物名 | C4: =IF(COUNTBLANK(シート①!D8)>0,"",シート①!D8) -> ○○橋 | G4: 部位 | I4: =IF(COUNTBLANK(シート①!D9)>0,"",シート①!D9) -> A1橋台 | M4: リフト | N4: =IF(COUNTBLANK(シート①!K9)>0,"",シート①!K9) -> 第2リフト
A5: 受注者 | G5: 確認者
A6: 配合 | G6: 確認日時
A7: 打込み開始時刻 | C7: 予定 | E7: 実績 | G7: 打込み開始時気温 | K7: 天候
A8: 打込み終了時刻 | C8: 予定 | E8: 実績 | G8: 打込み量(m3) | K8: リフト高(m)
A9: 施工 段階 | B9: チェック項目 | M9: 記述 | N9: 確認
A10: 準備 | B10: コンクリート打込み作業人員（※）に余裕を持たせているか。
B11: 予備のバイブレータを準備しているか。
B12: 発電機のトラブルがないよう、事前にチェックをしているか。 | M12: －
B13: 急な雨に対応出来るように、シート等は用意されているか。 | M13: －
B14: 運搬装置・打込み設備は汚れていないか。 | M14: －
B15: 足洗い場が設置されているか。 | M15: －
B16: 型枠内部に、木屑や結束線等の異物はないか。 | M16: －
B17: かぶり内に結束線はないか。 | M17: －
B18: 硬化したコンクリートの表面のレイタンス等は取り除き、ぬらしているか。 | M18: －
B19: 型枠面は湿らせているか。 | M19: －
B20: ポンプ車のアウトリガーの張出及び敷板養生は十分か。 | M20: －
A21: 運搬 | B21: 練り混ぜてから打ち終わるまでの時間は適切であるか。
A22: 打込み | B22: ポンプや配管内面の潤滑性を確保するため、先送りモルタルの圧送等の処置を施しているか。 | M22: －
B23: 鉄筋や型枠は乱れていないか。 | M23: －
B24: 横移動が不要となる適切な位置に、コンクリートを垂直に降ろしているか。 | M24: －
B25: コンクリートは、打込みが完了するまで連続して打ち込んでいるか。 | M25: －
B26: コンクリートの表面が水平になるように打ち込んでいるか。 | M26: －
B27: 一層の高さは、50cm以下としているか。
B28: 2層以上に分けて打ち込む場合は、上層のコンクリートの打込みは、下層のコンクリートが固まり始める前に行っているか。 | M28: －
B29: ポンプ配管等の吐出口から打込み面までの高さは、1.5m以下としているか。
B30: 表面にブリーディング水がある場合には、これを取り除いてからコンクリートを打ち込んでいるか。 | M30: －
B31: 鉄筋にコンクリートが付着した場合には、これを取り除いてから次のコンクリートを打ち込んでいるか。 | M31: －
A32: 締固め | B32: バイブレータを下層のコンクリートに10cm程度挿入しているか。 | M32: －
B33: バイブレータを鉛直に挿入し、挿入間隔は50cm以下としているか。 | M33: －
B34: 締固め作業中に、バイブレータを鉄筋等に接触させていないか。 | M34: －
B35: バイブレータでコンクリートを横移動させていないか。 | M35: －
B36: バイブレータは、穴が残らないように徐々に引き抜いているか。 | M36: －
B37: 締固め時間は適切か（５～15秒）
A38: 養生 | B38: 硬化を始めるまでに乾燥するおそれがある場合は、シートなどで日よけや風よけを設けているか。 | M38: －
B39: コンクリートの露出面を湿潤状態に保っているか。 | M39: －
B40: 湿潤状態を保つ期間は適切であるか。
B41: 型枠および支保工の取外しは、コンクリートが必要な強度に達した後であるか。 | M41: －
A42: 要改善 事項等
A45: ※打込み作業人員：コンクリートの打込み・締固め作業時の人員のうち、直接作業に携わらない者（監理・主任技術者やポンプ車運転手）を除いた人員 ※※本シートは、山口県のチェックシートをもとに群馬県品質確保WGが作成した暫定版である。
G47: 所長 | H47: 副所長 | J47: 係長 | M47: 報告者(監督員)
A48: 事務所でとりまとめ 写しを建設企画課に 提出 | H48: 次長(技)

Sheet 目視評価記録シート
A1: 目視評価記録シート Ver.01
A3: 基本情報 | B3: ※シート①より自動転載
A4: 工事名 | B4: =IF(COUNTBLANK(シート①!D6)>0,"",シート①!D6) -> ○○○工事 | E4: 工区 | F4: =IF(COUNTBLANK(シート①!N6)>0,"",シート①!N6) -> 2
A5: 構造物名 | B5: =IF(COUNTBLANK(シート①!D8)>0,"",シート①!D8) -> ○○橋
A6: 構造物詳細 | C6: =IF(COUNTBLANK(シート①!D9)>0,"",シート①!D9) -> A1橋台 | F6: リフト名 | G6: =IF(COUNTBLANK(シート①!K9)>0,"",シート①!K9) -> 第2リフト
A8: 目視評価対象リフトの打込み日
A9: 目視評価実施日
A10: 目視評価実施時の材齢（日） ※自動計算 | D10: =D9-D8 -> 0
A11: 目視評価実施日の天候
A13: 番号 | B13: 評価者 | C13: 沈みひび割れ | D13: 表面気泡 | E13: 打重ね線 | F13: ノロ漏れ | G13: 砂すじ
A14: 1
A15: 2
A16: 3
A17: 4
A18: 5
A19: 6
A20: 7
A21: 8
A22: 9
A23: 10
A24: 11
A25: 12
A26: 13
A27: 14
A28: 15
A29: 平均値 | B29: =AVERAGE(C29:G29) -> 0 | C29: =IFERROR(AVERAGE(C14:C28),0) -> 0 | D29: 0 | E29: 0 | F29: 0 | G29: =IFERROR(AVERAGE(G14:G28),0) -> 0
A30: ※別添の目視評価参考資料をもとに評価者の点数を記録
A31: ※評価者については氏名でも「監督職員A」などの記号でも可．
A33: 備考（目視評価実施中の気付きを記入）

Sheet シートA 打設予定報告
L1: 別表１
A2: 番号 | B2: 事務所 | C2: 路河川 | D2: 箇所 | E2: 構造物 | H2: 規格（概略寸法）
E3: 構造 | F3: （その他の場合の構造） | G3: ＲＣ or ＰＣ | H3: 体積(ｍ3) | I3: 長さ（ｍ） | J3: 幅（ｍ） | K3: 高さ（ｍ）
C5: 打込み日 （予定） | D5: １リフト | E5: 打込み3ヶ月後 （予定） | F5: １リフト
D7: ２リフト | F7: ２リフト
D9: ３リフト | F9: ３リフト
D11: ４リフト | F11: ４リフト
D13: ５リフト | F13: ５リフト
B20: なお、現場状況により対象構造物、打設時期の変更や監督員が変更となる場合については、建設企画課へ連絡してください。

Sheet InputLimitCells (hidden)
A1: InputLimitCells(データ入力制限設定記録)
A2: 通番 | B2: シート名 | C2: 列 | D2: 行 | E2: 表題 | G2: 制限 | H2: Format | J2: メッセージまたは備考
A3: =IF(""<>B3,ROW()-2,"") -> 1 | B3: シート① | C3: K | D3: 5 | E3: 工期 | F3: 開始 | G3: 日付 | H3: YYYY/MM/DD | I3: 半角 | J3: 入力値エラー | K3: YYYY/MM/DD形式で、1904/1/1以降の日付を入力してください。
A4: =IF(""<>B4,ROW()-2,"") -> 2 | B4: シート① | C4: N | D4: 5 | E4: 工期 | F4: 終了 | G4: 日付 | H4: YYYY/MM/DD | I4: 半角 | J4: 入力値エラー | K4: YYYY/MM/DD形式で、1904/1/1以降の日付を入力してください。
A5: =IF(""<>B5,ROW()-2,"") -> 3 | B5: シート① | C5: F | D5: 37 | E5: 厚さ | G5: 小数0以上 | H5: *.### | I5: 半角文字列
A6: 4 | B6: シート① | C6: L | D6: 37 | E6: 誘発目地間隔 | G6: 小数0以上 | I6: 半角文字列
A7: 5 | B7: シート① | C7: F | D7: 38 | E7: 長さ(幅) | G7: 小数0以上 | H7: *.## | I7: 半角文字列
A8: 6 | B8: シート① | C8: L | D8: 38 | E8: 膨張材 | G8: 小数0以上 | I8: 半角文字列
A9: 7 | B9: シート② | C9: I | D9: 10 | E9: スランプ | G9: 整数 | I9: 数値 | J9: 入力値エラー | K9: 正の整数を入力してください。
A10: 8 | B10: シート② | C10: M | D10: 10 | E10: 骨材最大寸法 | G10: 整数 | I10: 数値 | J10: 入力値エラー | K10: 正の整数を入力してください。
A11: 9 | B11: シート② | C11: E | D11: 11 | E11: 水セメント比 | G11: 整数 | I11: 数値 | J11: 入力値エラー | K11: 正の整数を入力してください。
A12: 10 | B12: シート② | C12: I | D12: 11 | E12: 単位ｾﾒﾝﾄ量 | G12: 整数 | I12: 数値 | J12: 入力値エラー | K12: 正の整数を入力してください。
A13: 11 | B13: シート② | C13: E | D13: 16 | E13: 打込み開始時 | F13: スランプ | G13: 小数0以上 | H13: *.# | I13: 半角文字列
A14: 12 | B14: シート② | C14: E | D14: 17 | E14: 打込み開始時 | F14: 空気量 | G14: 小数0以上 | H14: *.# | I14: 半角文字列
A15: 13 | B15: シート② | C15: E | D15: 18 | E15: 打込み開始時 | F15: 塩化物イオン量 | G15: 小数0以上 | H15: *.# | I15: 半角文字列
A16: 14 | B16: シート② | C16: N | D16: 18 | E16: 試験許容値 | F16: 塩化物イオン量 | G16: 小数0以上 | H16: *.## | I16: 半角文字列
A17: 15 | B17: シート② | C17: E | D17: 19 | E17: 打込み開始時 | F17: ｺﾝｸﾘｰﾄ温度 | G17: 小数0以上 | H17: *.# | I17: 半角文字列
A18: 16 | B18: シート② | C18: E | D18: 20 | E18: 打込み開始時 | F18: 打込み時外気温 | G18: 小数0以上 | H18: *.# | I18: 半角文字列
A19: 17 | B19: シート② | C19: E | D19: 21 | E19: 打込み開始時 | F19: 7日強度 | G19: 小数0以上 | H19: *.# | I19: 半角文字列
A20: 18 | B20: シート② | C20: E | D20: 22 | E20: 打込み開始時 | F20: 28日強度 | G20: 小数0以上 | H20: *.# | I20: 半角文字列
A21: 19 | B21: シート② | C21: D | D21: 25 | E21: 打込み日 | G21: 日付 | H21: YYYY/MM/DD | I21: 半角 | J21: 入力値エラー | K21: YYYY/MM/DD形式で、1904/1/1以降の日付を入力してください。
A22: 20 | B22: シート② | C22: N | D22: 25 | E22: 下側ﾘﾌﾄ打込み日 | G22: 日付 | H22: YYYY/MM/DD | I22: 半角 | J22: 入力値エラー | K22: YYYY/MM/DD形式で、1904/1/1以降の日付を入力してください。
A23: =IF(""<>B23,ROW()-2,"") -> 21 | B23: シート② | C23: F | D23: 27 | E23: 運搬 | F23: 現場までの運搬時間 | G23: 整数 | I23: 数値 | J23: 入力値エラー | K23: 正の整数を入力してください。
A24: 22 | B24: シート② | C24: J | D24: 27 | E24: 運搬 | F24: 現場待機時間 | G24: 整数 | I24: 数値 | J24: 入力値エラー | K24: 正の整数を入力してください。
A25: 23 | B25: シート② | C25: N | D25: 27 | E25: 運搬 | F25: 荷卸し時間 | G25: 整数 | I25: 数値 | J25: 入力値エラー | K25: 正の整数を入力してください。
A26: 24 | B26: シート② | C26: J | D26: 28 | E26: 運搬 | F26: ポンプ圧送距離 | G26: 整数 | I26: 数値 | J26: 入力値エラー | K26: 正の整数を入力してください。
A27: 25 | B27: シート② | C27: N | D27: 28 | E27: 運搬 | F27: ポンプ車台数 | G27: 整数 | I27: 数値 | J27: 入力値エラー | K27: 正の整数を入力してください。
A28: 26 | B28: シート② | C28: F | D28: 29 | E28: 開始時刻 | G28: 時刻 | H28: hh:mm | I28: 半角 | J28: 入力値エラー | K28: 0:00～23:59で入力してください。
A29: 27 | B29: シート② | C29: J | D29: 29 | E29: 終了時刻 | G29: 時刻 | H29: hh:mm | I29: 半角 | J29: 入力値エラー | K29: 0:00～23:59で入力してください。
A30: 28 | B30: シート② | C30: F | D30: 31 | E30: 打込み | F30: リフト高 | G30: 小数0以上 | H30: *.# | I30: 半角文字列
A31: 29 | B31: シート② | C31: J | D31: 31 | E31: 打込み | F31: 打込み量 | G31: 小数0以上 | H31: *.# | I31: 半角文字列
A32: 30 | B32: シート② | C32: N | D32: 31 | E32: 打込み | F32: 打込み速度 | G32: 小数0以上 | H32: *.# | I32: 半角文字列
A33: 31 | B33: シート② | C33: F | D33: 31 | E33: 締固め | F33: ﾊﾞｲﾌﾞﾚｰﾀ台数 | G33: 整数 | I33: 数値 | J33: 入力値エラー | K33: 正の整数を入力してください。
A34: 32 | B34: シート② | C34: J | D34: 31 | E34: 締固め | F34: ﾊﾞｲﾌﾞﾚｰﾀ人数 | G34: 整数 | I34: 数値 | J34: 入力値エラー | K34: 正の整数を入力してください。
A35: 33 | B35: シート② | C35: N | D35: 31 | E35: 締固め | F35: ﾊﾞｲﾌﾞﾚｰﾀ予備 | G35: 整数 | I35: 数値 | J35: 入力値エラー | K35: 正の整数を入力してください。
A36: 34 | B36: シート② | C36: F | D36: 32 | E36: 締固め | F36: ホース筒先 | G36: 整数 | I36: 数値 | J36: 入力値エラー | K36: 正の整数を入力してください。
A37: 35 | B37: シート② | C37: D | D37: 35 | E37: 初期温度 | G37: 小数1000000以下 | H37: *.# | I37: 半角文字列
A38: 36 | B38: シート② | C38: H | D38: 35 | E38: 最高温度 | G38: 小数1000000以下 | H38: *.# | I38: 半角文字列
A39: 37 | B39: シート② | C39: F | D39: 36 | E39: 最高温度に到達した時間 | G39: 整数 | I39: 数値 | J39: 入力値エラー | K39: 正の整数を入力してください。
A40: 38 | B40: シート② | C40: F | D40: 39 | E40: 脱型日 | G40: 日付 | H40: YYYY/MM/DD | I40: 半角 | J40: 入力値エラー | K40: YYYY/MM/DD形式で、1904/1/1以降の日付を入力してください。
A41: 39 | B41: シート② | C41: F | D41: 42 | E41: 養生（湿潤状態）期間 | G41: 整数 | I41: 数値 | J41: 入力値エラー | K41: 正の整数を入力してください。
A42: 40 | B42: シート③④ | C42: F | E42: 計測時刻 | G42: 時刻 | H42: hh:mm | I42: 半角 | J42: 入力値エラー | K42: 0:00～23:59で入力してください。
A43: 41 | B43: シート③④ | C43: G | E43: ｺﾝｸﾘｰﾄ温度 | G43: 小数1000000以下 | H43: *.# | I43: 半角文字列
A44: 42 | B44: シート③④ | C44: I | E44: 外気温 | G44: 小数1000000以下 | H44: *.# | I44: 半角文字列
A45: =IF(""<>B45,ROW()-2,"") -> 43 | B45: シート⑥ | C45: C | D45: 14～25 | E45: 調査日 | G45: 日付 | H45: YYYY/MM/DD | I45: 半角 | J45: 入力値エラー | K45: YYYY/MM/DD形式で、1904/1/1以降の日付を入力してください。
A46: 44 | B46: シート⑥ | C46: E～O | D46: 29 | E46: 補修日 | G46: 日付 | H46: YYYY/MM/DD | I46: 半角 | J46: 入力値エラー | K46: YYYY/MM/DD形式で、1904/1/1以降の日付を入力してください。

Sheet List_DEF (hidden)
A1: 使用 | B1: シート① | C1: シート① | D1: シート① | E1: シート① | F1: シート① | G1: シート① | H1: シート① | I1: シート① | J1: シート① | K1: シート① | L1: シート② | M1: シート② | N1: シート② | O1: シート② | P1: シート② | Q1: シート⑥ (追加あり) | R1: シート⑥ (追加あり) | S1: シート⑥ (追加あり) | T1: シート⑤ | U1: シート⑥ (追加あり) | V1: シート⑦ | W1: シート⑦ | X1: シート⑦ | Y1: シート⑦ | Z1: シート⑦ | AA1: シート⑦ | AB1: シート⑧ | AC1: CheckList | AD1: CheckList | AE1: CheckList | AF1: CheckList | AG1: CheckList | AH1: シート①
A2: 位置 | B2: L34 | C2: L36 | D2: F40/F41/F42/F43 | E2: M34 | F2: M36 | G2: G40/G41/G42/G43 | H2: F33 | I2: F34 | J2: F35 | K2: L33 | L2: E10 | M2: E12 | N2: E13 | O2: I13 | P2: F28 | Q2: E/O11 | R2: E/O12 | S2: E/O13 | T2: E10 | U2: E/O28 | V2: J14 | AC2: B/J | AD2: K | AE2: Ｎ | AF2: M | AG2: Q | AH2: K4
A3: 表題 | B3: ○ひび割れ抑制対策 | C3: ○ひび割れ抑制対策 | D3: ○配筋 | E3: ○ひび割れ抑制対策 | F3: ○ひび割れ抑制対策 | G3: ○配筋 | H3: ○構造 | I3: ○構造 | J3: ○構造 | K3: ○ひび割れ抑制対策 | L3: ○コンクリート | M3: ○コンクリート | N3: ○コンクリート | O3: ○コンクリート | P3: ○運搬・打込み・締固め | Q3: ○ひび割れ状況 | R3: ○ひび割れ状況 | S3: ○ひび割れ状況 | T3: ○ひび割れの有無 | U3: ○ひび割れ状況 | V3: ○確実な施工 | W3: ○確実な施工 | X3: ○確実な施工 | Y3: ○確実な施工 | Z3: ○ひび割れ抑制 | AA3: ○ひび割れ抑制 | AB3: ○排水・防水対策 | AC3: チェック有効 | AF3: Form | AG3: Relation | AH3: ○基本情報
Q4: ひび割れ | R4: ひび割れ | S4: ひび割れ | U4: 補修 | AC4: Effective | AD4: Half-width Kind | AE4: Range | AF4: Format | AG4: Kind
B5: 配筋状況（タイプA） | C5: 配筋状況（タイプB） | D5: 配筋面1 | E5: 配筋状況（タイプA） | F5: 配筋状況（タイプB） | G5: 配筋面2 | H5: 構造物種類 | I5: 構造形式 | J5: 打込み部位 | K5: 補強鉄筋 | L5: 呼び強度 | M5: セメント種類 | N5: 混和剤 | O5: 混和材 | P5: 現場内運搬方法 | Q5: 位置 | R5: 形状 | S5: 方向 | T5: ひび割れの有無 | U5: 補修の有無 | V5: 流動化剤の後添加有無 | W5: 打込み時の一時鉄筋移動 | X5: コンクリートの施工性 | Y5: 初期欠陥の有無/程度 | Z5: 温度ひび割れ検討 | AA5: 照査方法 | AB5: 防水対策の有無 | AH5: 受注者
A6: 入力 | B6: 範囲外エラー | C6: 範囲外エラー | D6: 範囲外エラー | E6: 範囲外OK | F6: 範囲外OK | G6: 範囲外OK | H6: 範囲外エラー | I6: 範囲外エラー | J6: 範囲外エラー | K6: 範囲外エラー | L6: 範囲外エラー | M6: 範囲外エラー | N6: 範囲外エラー | O6: 範囲外エラー | P6: 範囲外エラー | Q6: 範囲外エラー | R6: 範囲外エラー | S6: 範囲外エラー | T6: 範囲外エラー | U6: 範囲外エラー | V6: 範囲外エラー | W6: 範囲外エラー | X6: 範囲外エラー | Y6: 範囲外エラー | Z6: 範囲外エラー | AA6: 範囲外エラー | AB6: 範囲外エラー | AC6: 範囲外エラー | AD6: 範囲外エラー | AE6: 範囲外エラー | AF6: 範囲外OK | AG6: 範囲外エラー | AH6: 範囲外エラー
A7: 規則 | B7: 半角 | C7: 半角 | D7: 半角 | E7: 半角 | F7: 半角 | G7: 半角 | H7: コントロールなし | I7: コントロールなし | J7: コントロールなし | K7: コントロールなし | L7: 半角 | M7: コントロールなし | N7: コントロールなし | O7: コントロールなし | P7: コントロールなし | Q7: コントロールなし | R7: コントロールなし | S7: コントロールなし | T7: コントロールなし | U7: コントロールなし | V7: コントロールなし | W7: コントロールなし | X7: コントロールなし | Y7: コントロールなし | Z7: コントロールなし | AA7: コントロールなし | AB7: コントロールなし | AC7: 半角 | AD7: 半角 | AE7: 半角 | AG7: 半角
A8: 設定 | K8: 空白無視 | N8: 空白無視 | O8: 空白無視 | P8: 空白無視 | Q8: 空白無視 | R8: 空白無視 | S8: 空白無視 | T8: 空白無視 | U8: 空白無視 | V8: 空白無視 | W8: 空白無視 | X8: 空白無視 | Y8: 空白無視 | Z8: 空白無視 | AA8: 空白無視 | AB8: 空白無視 | AC8: 空白無視 | AD8: 空白無視 | AE8: 空白無視 | AF8: 空白無視 | AG8: 空白無視
A11: =IF(0<COUNTA(E11:AB11),ROW()-10,"") -> 1 | C11: 同左 | D11: 同左 | F11: 同左 | G11: 同左 | K11: --- | N11: --- | O11: --- | U11: 同左
A12: 2 | B12: D13 | C12: D13 | D12: D13 | E12: @125 | F12: @125 | G12: @125 | H12: 橋台 | I12: RC構造 | J12: 胸壁 | K12: タイプA | L12: 21 | M12: 高炉B種 | N12: AE減水剤 | O12: 膨張材 | P12: ポンプ（配管なし） | Q12: 正面 | R12: 貫通 | S12: 鉛直 | T12: 有 | U12: 有 | V12: 有 | W12: 有 | X12: 極めて良好 | Y12: 有 | Z12: 対象 | AA12: 群馬DB | AB12: 有 | AC12: Y | AD12: A | AE12: MT | AF12: DATE | AG12: R | AH12: 前橋土木事務所
A13: 3 | B13: D16 | C13: D16 | D13: D16 | E13: @150 | F13: @150 | G13: @150 | H13: 橋脚 | I13: PC構造 | J13: たて壁 | K13: タイプB | L13: 24 | M13: 普通 | N13: 高性能AE | O13: その他 | P13: ポンプ（配管あり） | Q13: 背面 | R13: 表面 | S13: 水平 | T13: 無 | U13: 無 | V13: 無 | W13: 無 | X13: 良好 | Y13: 無 | Z13: 対象外 | AA13: 山口DB | AB13: 無 | AD13: N | AE13: AB | AF13: TIME | AG13: < | AH13: 渋川土木事務所
A14: 4 | B14: D19 | C14: D19 | D14: D19 | E14: @200 | F14: @200 | G14: @200 | H14: ボックスカルバート | I14: 無筋構造 | J14: 柱 | K14: タイプA+B | L14: 27 | M14: 早強 | N14: 収縮低減剤 | P14: クレーン | R14: 沈み | S14: その他（斜め、網目等） | X14: 普通 | AA14: 九州簡易式 | AD14: S | AF14: LAT | AG14: > | AH14: 伊勢崎土木事務所
A15: 5 | B15: D22 | C15: D22 | D15: D22 | E15: @250 | F15: @250 | G15: @250 | H15: 擁壁 | I15: その他 | J15: 側壁・頂版 | L15: 30 | M15: 低熱 | N15: 遅延剤 | P15: その他 | X15: やや難 | AA15: 温度応力解析 | AD15: AN | AG15: <= | AH15: 高崎土木事務所
A16: 6 | B16: D25 | C16: D25 | D16: D25 | E16: @300 | F16: @300 | G16: @300 | H16: 床版 | J16: 側壁 | L16: 36 | M16: 中庸熱 | N16: 流動化剤 | X16: 困難 | AA16: その他 | AD16: AS | AG16: >= | AH16: 藤岡土木事務所
A17: 7 | B17: D29 | C17: D29 | D17: D29 | H17: 高欄 | J17: 頂版 | L17: 40 | M17: その他 | N17: その他 | AD17: NS | AG17: = | AH17: 富岡土木事務所
A18: 8 | B18: D32 | C18: D32 | D18: D32 | H18: 堰堤 | J18: 底版 | AD18: ANS | AH18: 安中土木事務所
A19: 9 | B19: D35 | C19: D35 | D19: D35 | H19: RC上部工 | J19: その他 | AH19: 中之条土木事務所
A20: 10 | B20: D38 | C20: D38 | D20: D38 | H20: PC上部工 | AH20: 沼田土木事務所
A21: 11 | B21: D41 | C21: D41 | D21: D41 | H21: その他 | AH21: 太田土木事務所
B22: D51 | C22: D51 | D22: D51 | AH22: 桐生土木事務所
AH23: 館林土木事務所
AH24: 下水道総合事務所

Sheet CheckList (hidden)
B1: チェック有効 | C1: チェック対象セル | J1: チェック種別 | L1: Length | M1: Form | N1: Num Range | Q1: Relation | Y1: DB | AB1: EfctValNum
A2: No. | B2: Effective | C2: Sheet | D2: 列 | E2: 行 | F2: BeforeVal | G2: NowVal | H2: EfctVal | I2: Differ | J2: Required | K2: Half-width Kind | L2: CharNum | M2: Format | N2: Range | O2: Min | P2: Max | Q2: Kind | R2: 1 No | S2: 2 No | T2: 3 No | U2: 4 No | V2: 5 No | W2: Efct Chk | X2: Posit Chk | Y2: Register | Z2: RegisterVal | AA2: Column | AB2: =(MATCH("_e",$H:$H,0)-3)-COUNTBLANK($H$3:INDIRECT("$H"&TEXT(MATCH("_e",$H:$H,0)-1,"@"))) -> 297
A3: =IF($C3="","",ROW()-2) -> 1 | B3: Y | C3: シート① | D3: D | E3: 4 | G3: =IFERROR(IF(ISBLANK(INDIRECT($C3 & "!" & $D3 & $E3)),"",INDIRECT($C3 & "!" & $D3 & $E3)),"") -> 前橋土木事務所 | H3: =IF(AND($B3<>"",$G3<>""),$G3,"") -> 前橋土木事務所 | I3: =IF($F3<>$H3,"D","") -> D | J3: Y | L3: 30 | W3: =IF(AND($B3="",0<COUNTA($J3:$V3)),"?","") ->  | X3: =IF(AND($B3<>"",OR($C3="",$D3="",$E3="")),"?","") ->  | Y3: Y | Z3: =IF(AND($H3<>"",$Y3<>""),$H3,"") -> 前橋土木事務所 | AA3: organization_jname
A4: =IF($C4="","",MAX($A$3:INDIRECT("A" & TEXT(ROW()-1,"@")))+1) -> 2 | B4: Y | C4: シート① | D4: K | E4: 4 | G4: =IFERROR(IF(ISBLANK(INDIRECT($C4 & "!" & $D4 & $E4)),"",INDIRECT($C4 & "!" & $D4 & $E4)),"") -> ○○建設（株） | H4: =IF(AND($B4<>"",$G4<>""),$G4,"") -> ○○建設（株） | I4: =IF($F4<>$H4,"D","") -> D | J4: Y | L4: 60 | W4: =IF(AND($B4="",0<COUNTA($J4:$V4)),"?","") ->  | X4: =IF(AND($B4<>"",OR($C4="",$D4="",$E4="")),"?","") ->  | Y4: Y | Z4: =IF(AND($H4<>"",$Y4<>""),$H4,"") -> ○○建設（株） | AA4: contractor
A5: =IF($C5="","",MAX($A$3:INDIRECT("A" & TEXT(ROW()-1,"@")))+1) -> 3 | B5: Y | C5: シート① | D5: D | E5: 5 | G5: 県道○○号 ○○橋下部工事 | H5: 県道○○号 ○○橋下部工事 | I5: D | J5: Y | L5: 150 | W5: =IF(AND($B5="",0<COUNTA($J5:$V5)),"?","") ->  | Y5: Y | Z5: =IF(AND($H5<>"",$Y5<>""),$H5,"") -> 県道○○号 ○○橋下部工事 | AA5: route
A6: =IF($C6="","",MAX($A$3:INDIRECT("A" & TEXT(ROW()-1,"@")))+1) -> 4 | B6: Y | C6: シート① | D6: K | E6: 5 | G6: 42826 | H6: 42826 | I6: D | J6: Y | M6: DATE | Q6: <= | R6: =A7 -> 5
A7: =IF($C7="","",MAX($A$3:INDIRECT("A" & TEXT(ROW()-1,"@")))+1) -> 5 | B7: Y | C7: シート① | D7: N | E7: 5 | G7: 43160 | H7: 43160 | I7: D | J7: Y | M7: DATE
A8: =IF($C8="","",MAX($A$3:INDIRECT("A" & TEXT(ROW()-1,"@")))+1) -> 6 | B8: Y | C8: シート① | D8: D | E8: 6 | G8: ○○○工事 | H8: ○○○工事 | I8: D | J8: Y | L8: 100
A9: =IF($C9="","",MAX($A$3:INDIRECT("A" & TEXT(ROW()-1,"@")))+1) -> 7 | B9: Y | C9: シート① | D9: N | E9: 6 | G9: 2 | H9: 2 | I9: D | L9: 150 | Y9: Y | Z9: 2 | AA9: section
A10: =IF($C10="","",MAX($A$3:INDIRECT("A" & TEXT(ROW()-1,"@")))+1) -> 8 | B10: Y | C10: シート① | D10: D | E10: 7 | G10: ○○市○○地内 | H10: ○○市○○地内 | I10: D | J10: Y | L10: 150 | Y10: Y | Z10: ○○市○○地内 | AA10: cons_location
A11: =IF($C11="","",MAX($A$3:INDIRECT("A" & TEXT(ROW()-1,"@")))+1) -> 9 | B11: Y | C11: シート① | D11: K | E11: 7 | G11: 36°55′15″ | H11: 36°55′15″ | I11: D | J11: Y | M11: LAT | N11: AB | Y11: Y | Z11: 36°55′15″ | AA11: cons_latitude
A12: =IF($C12="","",MAX($A$3:INDIRECT("A" & TEXT(ROW()-1,"@")))+1) -> 10 | B12: Y | C12: シート① | D12: N | E12: 7 | G12: 122°56′1″ | H12: 122°56′1″ | I12: D | J12: Y | M12: LAT | N12: AB | Y12: Y | Z12: 122°56′1″ | AA12: cons_longitude
A13: =IF($C13="","",MAX($A$3:INDIRECT("A" & TEXT(ROW()-1,"@")))+1) -> 11 | B13: Y | C13: シート① | D13: D | E13: 8 | G13: ○○橋 | H13: ○○橋 | I13: D | J13: Y | L13: 150 | Y13: Y | Z13: ○○橋 | AA13: structure_name
A14: =IF($C14="","",MAX($A$3:INDIRECT("A" & TEXT(ROW()-1,"@")))+1) -> 12 | B14: Y | C14: シート① | D14: D | E14: 9 | G14: A1橋台 | H14: A1橋台 | I14: D | J14: Y | L14: 150 | Y14: Y | Z14: A1橋台 | AA14: structure_concrete
A15: =IF($C15="","",MAX($A$3:INDIRECT("A" & TEXT(ROW()-1,"@")))+1) -> 13 | B15: Y | C15: シート① | D15: K | E15: 9 | G15: 第2リフト | H15: 第2リフト | I15: D | J15: Y | L15: 50
A16: =IF($C16="","",MAX($A$3:INDIRECT("A" & TEXT(ROW()-1,"@")))+1) -> 14 | B16: Y | C16: シート① | D16: F | E16: 33 | G16: 橋台 | H16: 橋台 | I16: D | J16: Y | L16: 20 | Y16: Y | Z16: 橋台 | AA16: structure_type
A17: =IF($C17="","",MAX($A$3:INDIRECT("A" & TEXT(ROW()-1,"@")))+1) -> 15 | B17: Y | C17: シート① | D17: F | E17: 34 | G17: RC構造 | H17: RC構造 | I17: D | J17: Y | L17: 20 | Y17: Y | Z17: RC構造 | AA17: structure_form
A18: =IF($C18="","",MAX($A$3:INDIRECT("A" & TEXT(ROW()-1,"@")))+1) -> 16 | B18: Y | C18: シート① | D18: F | E18: 35 | G18: たて壁 | H18: たて壁 | I18: D | J18: Y | L18: 20 | Y18: Y | Z18: たて壁 | AA18: placing_place
A19: =IF($C19="","",MAX($A$3:INDIRECT("A" & TEXT(ROW()-1,"@")))+1) -> 17 | B19: Y | C19: シート① | D19: F | E19: 37 | G19: 2.2 | H19: 2.2 | I19: D | J19: Y | K19: N | N19: AB | O19: 0 | P19: 1000 | Y19: Y | Z19: 2.2 | AA19: structure_height
A20: =IF($C20="","",MAX($A$3:INDIRECT("A" & TEXT(ROW()-1,"@")))+1) -> 18 | B20: Y | C20: シート① | D20: F | E20: 38 | G20: 10.1 | H20: 10.1 | I20: D | J20: Y | K20: N | N20: AB | O20: 0 | P20: 1000 | Y20: Y | Z20: 10.1 | AA20: structure_width
A21: =IF($C21="","",MAX($A$3:INDIRECT("A" & TEXT(ROW()-1,"@")))+1) -> 19 | B21: Y | C21: シート① | D21: F | E21: 40 | G21: D29 | H21: D29 | I21: D | J21: Y | K21: AN
A22: =IF($C22="","",MAX($A$3:INDIRECT("A" & TEXT(ROW()-1,"@")))+1) -> 20 | B22: Y | C22: シート① | D22: G | E22: 40 | G22: @125 | H22: @125 | I22: D | J22: Y | K22: NS
A23: =IF($C23="","",MAX($A$3:INDIRECT("A" & TEXT(ROW()-1,"@")))+1) -> 21 | B23: Y | C23: シート① | D23: F | E23: 41 | G23: D29 | H23: D29 | I23: D | J23: Y | K23: AN
A24: =IF($C24="","",MAX($A$3:INDIRECT("A" & TEXT(ROW()-1,"@")))+1) -> 22 | B24: Y | C24: シート① | D24: G | E24: 41 | G24: @125 | H24: @125 | I24: D | J24: Y | K24: NS
A25: =IF($C25="","",MAX($A$3:INDIRECT("A" & TEXT(ROW()-1,"@")))+1) -> 23 | B25: Y | C25: シート① | D25: F | E25: 42 | G25: D19 | H25: D19 | I25: D | J25: Y | K25: AN
A26: =IF($C26="","",MAX($A$3:INDIRECT("A" & TEXT(ROW()-1,"@")))+1) -> 24 | B26: Y | C26: シート① | D26: G | E26: 42 | G26: @125 | H26: @125 | I26: D | J26: Y | K26: NS
A27: =IF($C27="","",MAX($A$3:INDIRECT("A" & TEXT(ROW()-1,"@")))+1) -> 25 | B27: Y | C27: シート① | D27: F | E27: 43 | G27: D19 | H27: D19 | I27: D | J27: Y | K27: AN
A28: =IF($C28="","",MAX($A$3:INDIRECT("A" & TEXT(ROW()-1,"@")))+1) -> 26 | B28: Y | C28: シート① | D28: G | E28: 43 | G28: @125 | H28: @125 | I28: D | J28: Y | K28: NS
A29: =IF($C29="","",MAX($A$3:INDIRECT("A" & TEXT(ROW()-1,"@")))+1) -> 27 | B29: Y | C29: シート① | D29: L | E29: 33 | G29: タイプA | H29: タイプA | I29: D | Q29: R | R29: =A30 -> 28 | S29: =A31 -> 29 | T29: =A32 -> 30 | U29: =A33 -> 31 | V29: =A34 -> 32
A30: =IF($C30="","",MAX($A$3:INDIRECT("A" & TEXT(ROW()-1,"@")))+1) -> 28 | B30: Y | C30: シート① | D30: L | E30: 34 | G30: D19 | H30: D19 | I30: D | K30: AN | R30: =A31 -> 29 | S30: =A32 -> 30
A31: =IF($C31="","",MAX($A$3:INDIRECT("A" & TEXT(ROW()-1,"@")))+1) -> 29 | B31: Y | C31: シート① | D31: M | E31: 34 | G31: @125 | H31: @125 | I31: D | K31: NS
A32: =IF($C32="","",MAX($A$3:INDIRECT("A" & TEXT(ROW()-1,"@")))+1) -> 30 | B32: Y | C32: シート① | D32: L | E32: 35 | G32: 1 | H32: 1 | I32: D | K32: N | N32: AB | O32: 0 | P32: 100
A33: =IF($C33="","",MAX($A$3:INDIRECT("A" & TEXT(ROW()-1,"@")))+1) -> 31 | B33: Y | C33: シート① | D33: L | E33: 36 | K33: AN
A34: =IF($C34="","",MAX($A$3:INDIRECT("A" & TEXT(ROW()-1,"@")))+1) -> 32 | B34: Y | C34: シート① | D34: M | E34: 36 | K34: NS
A35: =IF($C35="","",MAX($A$3:INDIRECT("A" & TEXT(ROW()-1,"@")))+1) -> 33 | B35: Y | C35: シート① | D35: F | E35: 44 | G35: 40mm | H35: 40mm | I35: D | L35: 14
A36: =IF($C36="","",MAX($A$3:INDIRECT("A" & TEXT(ROW()-1,"@")))+1) -> 34 | B36: Y | C36: シート① | D36: D | E36: 45 | L36: 150
A37: =IF($C37="","",MAX($A$3:INDIRECT("A" & TEXT(ROW()-1,"@")))+1) -> 35 | B37: Y | C37: シート① | D37: L | E37: 37 | K37: N | N37: AB | O37: 0 | P37: 1000 | Y37: Y | AA37: joint_interval
A38: =IF($C38="","",MAX($A$3:INDIRECT("A" & TEXT(ROW()-1,"@")))+1) -> 36 | B38: Y | C38: シート① | D38: L | E38: 38 | K38: N | N38: AB | O38: 0 | P38: 1000
A39: =IF($C39="","",MAX($A$3:INDIRECT("A" & TEXT(ROW()-1,"@")))+1) -> 37 | B39: Y | C39: シート① | D39: L | E39: 39 | L39: 24
A40: =IF($C40="","",MAX($A$3:INDIRECT("A" & TEXT(ROW()-1,"@")))+1) -> 38 | B40: Y | C40: シート① | D40: L | E40: 42 | G40: 0.11 | H40: 0.11 | I40: D | J40: Y | K40: N | N40: AB | P40: 1000 | Y40: Y | Z40: 0.11 | AA40: steel_ratio_before
A41: =IF($C41="","",MAX($A$3:INDIRECT("A" & TEXT(ROW()-1,"@")))+1) -> 39 | B41: Y | C41: シート① | D41: L | E41: 43 | G41: 0.3 | H41: 0.3 | I41: D | K41: N | N41: AB | P41: 1000 | Y41: Y | Z41: 0.3 | AA41: steel_ratio_after
A42: =IF($C42="","",MAX($A$3:INDIRECT("A" & TEXT(ROW()-1,"@")))+1) -> 40 | B42: Y | C42: シート① | D42: L | E42: 46 | G42: mihon | H42: mihon | I42: D | J42: Y | K42: ANS | L42: 30 | Y42: Y | Z42: mihon | AA42: lift_id
A43: =IF($C43="","",MAX($A$3:INDIRECT("A" & TEXT(ROW()-1,"@")))+1) -> 41 | B43: Y | C43: シート② | D43: E | E43: 10 | G43: 27 | H43: 27 | I43: D | J43: Y | N43: AB | P43: 1000 | Y43: Y | Z43: 27 | AA43: strength
A44: =IF($C44="","",MAX($A$3:INDIRECT("A" & TEXT(ROW()-1,"@")))+1) -> 42 | B44: Y | C44: シート② | D44: I | E44: 10 | G44: 8 | H44: 8 | I44: D | J44: Y | K44: N | N44: AB | P44: 1000 | Y44: Y | Z44: 8 | AA44: slump
A45: =IF($C45="","",MAX($A$3:INDIRECT("A" & TEXT(ROW()-1,"@")))+1) -> 43 | B45: Y | C45: シート② | D45: M | E45: 10 | G45: 20 | H45: 20 | I45: D | J45: Y | K45: N | N45: AB | P45: 1000 | Y45: Y | Z45: 20 | AA45: max_aggregate
A46: =IF($C46="","",MAX($A$3:INDIRECT("A" & TEXT(ROW()-1,"@")))+1) -> 44 | B46: Y | C46: シート② | D46: E | E46: 11 | G46: 55 | H46: 55 | I46: D | J46: Y | K46: N | N46: AB | P46: 1000 | Y46: Y | Z46: 55 | AA46: wc
A47: =IF($C47="","",MAX($A$3:INDIRECT("A" & TEXT(ROW()-1,"@")))+1) -> 45 | B47: Y | C47: シート② | D47: I | E47: 11 | G47: 300 | H47: 300 | I47: D | J47: Y | K47: N | N47: AB | P47: 1000 | Y47: Y | Z47: 300 | AA47: unit_cement
A48: =IF($C48="","",MAX($A$3:INDIRECT("A" & TEXT(ROW()-1,"@")))+1) -> 46 | B48: Y | C48: シート② | D48: E | E48: 12 | G48: 高炉B種 | H48: 高炉B種 | I48: D | J48: Y | L48: 60 | Y48: Y | Z48: 高炉B種 | AA48: cement_type
A49: =IF($C49="","",MAX($A$3:INDIRECT("A" & TEXT(ROW()-1,"@")))+1) -> 47 | B49: Y | C49: シート② | D49: I | E49: 12 | G49: ○○セメント（株） | H49: ○○セメント（株） | I49: D | J49: Y | L49: 90 | Y49: Y | Z49: ○○セメント（株） | AA49: cement_company
A50: =IF($C50="","",MAX($A$3:INDIRECT("A" & TEXT(ROW()-1,"@")))+1) -> 48 | B50: Y | C50: シート② | D50: E | E50: 13 | G50: AE減水剤 | H50: AE減水剤 | I50: D | L50: 60 | Y50: Y | Z50: AE減水剤 | AA50: chemical_admixture
A51: =IF($C51="","",MAX($A$3:INDIRECT("A" & TEXT(ROW()-1,"@")))+1) -> 49 | B51: Y | C51: シート② | D51: I | E51: 13 | G51: --- | H51: --- | I51: D | L51: 20 | Y51: Y | Z51: --- | AA51: mineral_admixture
A52: =IF($C52="","",MAX($A$3:INDIRECT("A" & TEXT(ROW()-1,"@")))+1) -> 50 | B52: Y | C52: シート② | D52: E | E52: 14 | G52: ○○（株） ○○工場 | H52: ○○（株） ○○工場 | I52: D | J52: Y | L52: 90 | Y52: Y | Z52: ○○（株） ○○工場 | AA52: concrete_plant
A53: =IF($C53="","",MAX($A$3:INDIRECT("A" & TEXT(ROW()-1,"@")))+1) -> 51 | B53: Y | C53: シート② | D53: E | E53: 16 | G53: 9 | H53: 9 | I53: D | J53: Y | K53: N | N53: AB | O53: 0 | P53: 1000 | Y53: Y | Z53: 9 | AA53: slump000
A54: =IF($C54="","",MAX($A$3:INDIRECT("A" & TEXT(ROW()-1,"@")))+1) -> 52 | B54: Y | C54: シート② | D54: E | E54: 17 | G54: 5.5 | H54: 5.5 | I54: D | J54: Y | K54: N | N54: AB | O54: 0 | P54: 1000 | Y54: Y | Z54: 5.5 | AA54: air_content000
A55: =IF($C55="","",MAX($A$3:INDIRECT("A" & TEXT(ROW()-1,"@")))+1) -> 53 | B55: Y | C55: シート② | D55: E | E55: 18 | G55: 0.03 | H55: 0.03 | I55: D | J55: Y | K55: N | N55: AB | O55: 0 | P55: 1000 | Y55: Y | Z55: 0.03 | AA55: chloride000
A56: =IF($C56="","",MAX($A$3:INDIRECT("A" & TEXT(ROW()-1,"@")))+1) -> 54 | B56: Y | C56: シート② | D56: E | E56: 19 | G56: 24 | H56: 24 | I56: D | J56: Y | K56: N | N56: AB | O56: 0 | P56: 1000 | Y56: Y | Z56: 24 | AA56: concrete_temp000
A57: =IF($C57="","",MAX($A$3:INDIRECT("A" & TEXT(ROW()-1,"@")))+1) -> 55 | B57: Y | C57: シート② | D57: E | E57: 20 | G57: 22 | H57: 22 | I57: D | J57: Y | K57: N | N57: AB | O57: 0 | P57: 1000 | Y57: Y | Z57: 22 | AA57: ambient_temp000
A58: =IF($C58="","",MAX($A$3:INDIRECT("A" & TEXT(ROW()-1,"@")))+1) -> 56 | B58: Y | C58: シート② | D58: E | E58: 21 | G58: 19 | H58: 19 | I58: D | J58: Y | K58: N | N58: AB | O58: 0 | P58: 1000 | Y58: Y | Z58: 19 | AA58: strength07000
A59: =IF($C59="","",MAX($A$3:INDIRECT("A" & TEXT(ROW()-1,"@")))+1) -> 57 | B59: Y | C59: シート② | D59: E | E59: 22 | G59: 31 | H59: 31 | I59: D | J59: Y | K59: N | N59: AB | O59: 0 | P59: 1000 | Y59: Y | Z59: 31 | AA59: strength28000
A60: =IF($C60="","",MAX($A$3:INDIRECT("A" & TEXT(ROW()-1,"@")))+1) -> 58 | B60: Y | C60: シート② | D60: H | E60: 16 | K60: N | N60: AB | O60: 0 | P60: 1000
A61: =IF($C61="","",MAX($A$3:INDIRECT("A" & TEXT(ROW()-1,"@")))+1) -> 59 | B61: Y | C61: シート② | D61: H | E61: 17 | K61: N | N61: AB | O61: 0 | P61: 1000
A62: =IF($C62="","",MAX($A$3:INDIRECT("A" & TEXT(ROW()-1,"@")))+1) -> 60 | B62: Y | C62: シート② | D62: H | E62: 18 | K62: N | N62: AB | O62: 0 | P62: 1000
A63: =IF($C63="","",MAX($A$3:INDIRECT("A" & TEXT(ROW()-1,"@")))+1) -> 61 | B63: Y | C63: シート② | D63: H | E63: 19 | K63: N | N63: AB | O63: 0 | P63: 1000
A64: =IF($C64="","",MAX($A$3:INDIRECT("A" & TEXT(ROW()-1,"@")))+1) -> 62 | B64: Y | C64: シート② | D64: H | E64: 20 | K64: N | N64: AB | O64: 0 | P64: 1000
A65: =IF($C65="","",MAX($A$3:INDIRECT("A" & TEXT(ROW()-1,"@")))+1) -> 63 | B65: Y | C65: シート② | D65: H | E65: 21 | K65: N | N65: AB | O65: 0 | P65: 1000
A66: =IF($C66="","",MAX($A$3:INDIRECT("A" & TEXT(ROW()-1,"@")))+1) -> 64 | B66: Y | C66: シート② | D66: H | E66: 22 | K66: N | N66: AB | O66: 0 | P66: 1000
A67: =IF($C67="","",MAX($A$3:INDIRECT("A" & TEXT(ROW()-1,"@")))+1) -> 65 | B67: Y | C67: シート② | D67: K | E67: 16 | K67: N | N67: AB | O67: 0 | P67: 1000 | W67: =IF(AND($B67="",0<COUNTA($J67:$V67)),"?","") -> 
A68: =IF($C68="","",MAX($A$3:INDIRECT("A" & TEXT(ROW()-1,"@")))+1) -> 66 | B68: Y | C68: シート② | D68: K | E68: 17 | G68: =IFERROR(IF(ISBLANK(INDIRECT($C68 & "!" & $D68 & $E68)),"",INDIRECT($C68 & "!" & $D68 & $E68)),"") ->  | I68: =IF($F68<>$H68,"D","") ->  | K68: N | N68: AB | O68: 0 | P68: 1000 | X68: =IF(AND($B68<>"",OR($C68="",$D68="",$E68="")),"?","") -> 
A69: =IF($C69="","",MAX($A$3:INDIRECT("A" & TEXT(ROW()-1,"@")))+1) -> 67 | B69: Y | C69: シート② | D69: K | E69: 18 | K69: N | N69: AB | O69: 0 | P69: 1000 | Z69: =IF(AND($H69<>"",$Y69<>""),$H69,"") -> 
A70: =IF($C70="","",MAX($A$3:INDIRECT("A" & TEXT(ROW()-1,"@")))+1) -> 68 | B70: Y | C70: シート② | D70: K | E70: 19 | H70: =IF(AND($B70<>"",$G70<>""),$G70,"") ->  | K70: N | N70: AB | O70: 0 | P70: 1000
A71: =IF($C71="","",MAX($A$3:INDIRECT("A" & TEXT(ROW()-1,"@")))+1) -> 69 | B71: Y | C71: シート② | D71: K | E71: 20 | K71: N | N71: AB | O71: 0 | P71: 1000
A72: =IF($C72="","",MAX($A$3:INDIRECT("A" & TEXT(ROW()-1,"@")))+1) -> 70 | B72: Y | C72: シート② | D72: K | E72: 21 | K72: N | N72: AB | O72: 0 | P72: 1000
A73: =IF($C73="","",MAX($A$3:INDIRECT("A" & TEXT(ROW()-1,"@")))+1) -> 71 | B73: Y | C73: シート② | D73: K | E73: 22 | K73: N | N73: AB | O73: 0 | P73: 1000
A74: =IF($C74="","",MAX($A$3:INDIRECT("A" & TEXT(ROW()-1,"@")))+1) -> 72 | B74: Y | C74: シート② | D74: N | E74: 16 | G74: 8±2.5cm | H74: 8±2.5cm | I74: D | L74: 10
A75: =IF($C75="","",MAX($A$3:INDIRECT("A" & TEXT(ROW()-1,"@")))+1) -> 73 | B75: Y | C75: シート② | D75: N | E75: 17 | G75: 4.5±1.5% | H75: 4.5±1.5% | I75: D | L75: 10
A76: =IF($C76="","",MAX($A$3:INDIRECT("A" & TEXT(ROW()-1,"@")))+1) -> 74 | B76: Y | C76: シート② | D76: N | E76: 18 | G76: 0.3 | H76: 0.3 | I76: D | K76: N | N76: AB | O76: 0 | P76: 1000
A77: =IF($C77="","",MAX($A$3:INDIRECT("A" & TEXT(ROW()-1,"@")))+1) -> 75 | B77: Y | C77: シート② | D77: D | E77: 25 | G77: 42880 | H77: 42880 | I77: D | J77: Y | M77: DATE | Y77: Y | Z77: 2017-05-25 | AA77: placing_date
A78: =IF($C78="","",MAX($A$3:INDIRECT("A" & TEXT(ROW()-1,"@")))+1) -> 76 | B78: Y | C78: シート② | D78: J | E78: 25 | G78: 曇りのち晴 | H78: 曇りのち晴 | I78: D | J78: Y | L78: 60 | Y78: Y | Z78: 曇りのち晴 | AA78: Weather
A79: =IF($C79="","",MAX($A$3:INDIRECT("A" & TEXT(ROW()-1,"@")))+1) -> 77 | B79: Y | C79: シート② | D79: N | E79: 25 | G79: 42865 | H79: 42865 | I79: D | M79: DATE
A80: =IF($C80="","",MAX($A$3:INDIRECT("A" & TEXT(ROW()-1,"@")))+1) -> 78 | B80: Y | C80: シート② | D80: D | E80: 26 | G80: 塗装合板 | H80: 塗装合板 | I80: D | J80: Y | L80: 30
A81: =IF($C81="","",MAX($A$3:INDIRECT("A" & TEXT(ROW()-1,"@")))+1) -> 79 | B81: Y | C81: シート② | D81: J | E81: 26 | G81: 処理剤（○○） | H81: 処理剤（○○） | I81: D | L81: 40
A82: =IF($C82="","",MAX($A$3:INDIRECT("A" & TEXT(ROW()-1,"@")))+1) -> 80 | B82: Y | C82: シート② | D82: F | E82: 27 | G82: 20 | H82: 20 | I82: D | J82: Y | K82: N | N82: AB | O82: 0 | P82: 1000 | Y82: Y | Z82: 20 | AA82: transport_time
A83: =IF($C83="","",MAX($A$3:INDIRECT("A" & TEXT(ROW()-1,"@")))+1) -> 81 | B83: Y | C83: シート② | D83: J | E83: 27 | G83: 0 | H83: 0 | J83: Y | K83: N | N83: AB | O83: 0 | P83: 1000 | Y83: Y | Z83: 0 | AA83: waiting_time
A84: =IF($C84="","",MAX($A$3:INDIRECT("A" & TEXT(ROW()-1,"@")))+1) -> 82 | B84: Y | C84: シート② | D84: N | E84: 27 | G84: 20 | H84: 20 | I84: D | J84: Y | K84: N | N84: AB | O84: 0 | P84: 100 | Y84: Y | Z84: 20 | AA84: placing_time
A85: =IF($C85="","",MAX($A$3:INDIRECT("A" & TEXT(ROW()-1,"@")))+1) -> 83 | B85: Y | C85: シート② | D85: F | E85: 28 | G85: ポンプ（配管なし） | H85: ポンプ（配管なし） | I85: D | J85: Y | L85: 40
A86: =IF($C86="","",MAX($A$3:INDIRECT("A" & TEXT(ROW()-1,"@")))+1) -> 84 | B86: Y | C86: シート② | D86: J | E86: 28 | G86: 0 | H86: 0 | J86: Y | K86: N | N86: AB | O86: 0 | P86: 1000
A87: =IF($C87="","",MAX($A$3:INDIRECT("A" & TEXT(ROW()-1,"@")))+1) -> 85 | B87: Y | C87: シート② | D87: N | E87: 28 | G87: 1 | H87: 1 | I87: D | J87: Y | K87: N | N87: AB | O87: 0 | P87: 100
A88: =IF($C88="","",MAX($A$3:INDIRECT("A" & TEXT(ROW()-1,"@")))+1) -> 86 | B88: Y | C88: シート② | D88: F | E88: 29 | G88: 0.3402777778 | H88: 0.3402777778 | I88: D | J88: Y | M88: TIME | Y88: Y | Z88: 08:10:00 | AA88: placing_start
A89: =IF($C89="","",MAX($A$3:INDIRECT("A" & TEXT(ROW()-1,"@")))+1) -> 87 | B89: Y | C89: シート② | D89: J | E89: 29 | G89: 0.4583333333 | H89: 0.4583333333 | I89: D | J89: Y | M89: TIME | Y89: Y | Z89: 11:00:00 | AA89: placing_end
A90: =IF($C90="","",MAX($A$3:INDIRECT("A" & TEXT(ROW()-1,"@")))+1) -> 88 | B90: Y | C90: シート② | D90: F | E90: 30 | G90: 3 | H90: 3 | I90: D | J90: Y | K90: N | N90: AB | O90: 0 | P90: 1000 | Y90: Y | Z90: 3 | AA90: lift_height
A91: =IF($C91="","",MAX($A$3:INDIRECT("A" & TEXT(ROW()-1,"@")))+1) -> 89 | B91: Y | C91: シート② | D91: J | E91: 30 | G91: 70 | H91: 70 | I91: D | J91: Y | K91: N | N91: AB | O91: 0 | P91: 1000 | Y91: Y | Z91: 70 | AA91: amount
A92: =IF($C92="","",MAX($A$3:INDIRECT("A" & TEXT(ROW()-1,"@")))+1) -> 90 | B92: Y | C92: シート② | D92: N | E92: 30 | G92: 1 | H92: 1 | I92: D | J92: Y | K92: N | N92: AB | O92: 0 | P92: 1000 | Y92: Y | Z92: 1 | AA92: placing_velocity
A93: =IF($C93="","",MAX($A$3:INDIRECT("A" & TEXT(ROW()-1,"@")))+1) -> 91 | B93: Y | C93: シート② | D93: F | E93: 31 | G93: 3 | H93: 3 | I93: D | J93: Y | K93: N | N93: AB | O93: 0 | P93: 100
A94: =IF($C94="","",MAX($A$3:INDIRECT("A" & TEXT(ROW()-1,"@")))+1) -> 92 | B94: Y | C94: シート② | D94: J | E94: 31 | G94: 4 | H94: 4 | I94: D | J94: Y | K94: N | N94: AB | O94: 0 | P94: 100
A95: =IF($C95="","",MAX($A$3:INDIRECT("A" & TEXT(ROW()-1,"@")))+1) -> 93 | B95: Y | C95: シート② | D95: N | E95: 31 | G95: 1 | H95: 1 | I95: D | J95: Y | K95: N | N95: AB | O95: 0 | P95: 100
A96: =IF($C96="","",MAX($A$3:INDIRECT("A" & TEXT(ROW()-1,"@")))+1) -> 94 | B96: Y | C96: シート② | D96: F | E96: 32 | G96: 1 | H96: 1 | I96: D | J96: Y | K96: N | N96: AB | O96: 0 | P96: 100
A97: =IF($C97="","",MAX($A$3:INDIRECT("A" & TEXT(ROW()-1,"@")))+1) -> 95 | B97: Y | C97: シート② | D97: D | E97: 35 | G97: 24 | H97: 24 | I97: D | K97: N | N97: MT | O97: -273.15 | Y97: Y | Z97: 24 | AA97: initial_temp
A98: =IF($C98="","",MAX($A$3:INDIRECT("A" & TEXT(ROW()-1,"@")))+1) -> 96 | B98: Y | C98: シート② | D98: H | E98: 35 | G98: 48 | H98: 48 | I98: D | K98: N | N98: MT | O98: -273.15 | Q98: > | R98: =A97 -> 95 | Y98: Y | Z98: 48 | AA98: max_temp
A99: =IF($C99="","",MAX($A$3:INDIRECT("A" & TEXT(ROW()-1,"@")))+1) -> 97 | C99: シート② | D99: L | E99: 35 | G99: =IFERROR(IF(ISBLANK(INDIRECT($C99 & "!" & $D99 & $E99)),"",INDIRECT($C99 & "!" & $D99 & $E99)),"") -> 24 | K99: N | N99: MT | O99: -273.15 | W99: ? | Y99: Y | Z99: =IF(AND($G99<>"",$Y99<>""),$G99,"") -> 24 | AA99: rise_temp
A100: =IF($C100="","",MAX($A$3:INDIRECT("A" & TEXT(ROW()-1,"@")))+1) -> 98 | B100: Y | C100: シート② | D100: F | E100: 36 | G100: 30 | H100: 30 | I100: D | K100: N | N100: AB | O100: 0 | P100: 100 | Y100: Y | Z100: 30 | AA100: max_time
A101: =IF($C101="","",MAX($A$3:INDIRECT("A" & TEXT(ROW()-1,"@")))+1) -> 99 | B101: Y | C101: シート② | D101: F | E101: 39 | G101: 42891 | H101: 42891 | I101: D | J101: Y | M101: DATE | Q101: > | R101: =A77 -> 75 | Y101: Y | Z101: 2017-06-05 | AA101: removal_day
A102: =IF($C102="","",MAX($A$3:INDIRECT("A" & TEXT(ROW()-1,"@")))+1) -> 100 | C102: シート② | D102: N | E102: 39 | G102: 11 | J102: Y | K102: N | N102: AB | O102: 0 | P102: 1000 | W102: =IF(AND($B102="",0<COUNTA($J102:$V102)),"?","") -> ? | Y102: Y | Z102: =IF(AND($G102<>"",$Y102<>""),$G102,"") -> 11 | AA102: leaving_period
A103: =IF($C103="","",MAX($A$3:INDIRECT("A" & TEXT(ROW()-1,"@")))+1) -> 101 | B103: Y | C103: シート② | D103: F | E103: 40 | G103: 型枠＋ブルーシート | H103: 型枠＋ブルーシート | I103: D | J103: Y | L103: 90 | Y103: Y | Z103: 型枠＋ブルーシート | AA103: curing_side
A104: =IF($C104="","",MAX($A$3:INDIRECT("A" & TEXT(ROW()-1,"@")))+1) -> 102 | B104: Y | C104: シート② | D104: F | E104: 41 | G104: 養生マット＋ブルーシート＋散水 | H104: 養生マット＋ブルーシート＋散水 | I104: D | J104: Y | L104: 90 | Y104: Y | Z104: 養生マット＋ブルーシート＋散水 | AA104: curing_top
A105: =IF($C105="","",MAX($A$3:INDIRECT("A" & TEXT(ROW()-1,"@")))+1) -> 103 | B105: Y | C105: シート② | D105: F | E105: 42 | G105: 7 | H105: 7 | I105: D | J105: Y | K105: N | N105: AB | O105: 0 | P105: 1000 | Y105: Y | Z105: 7 | AA105: curing_period
A106: =IF($C106="","",MAX($A$3:INDIRECT("A" & TEXT(ROW()-1,"@")))+1) -> 104 | B106: Y | C106: シート③④ | D106: E | E106: 10 | G106: 晴 | H106: 晴 | I106: D | L106: 6
A107: =IF($C107="","",MAX($A$3:INDIRECT("A" & TEXT(ROW()-1,"@")))+1) -> 105 | B107: Y | C107: シート③④ | D107: E | E107: 11 | L107: 6
A108: =IF($C108="","",MAX($A$3:INDIRECT("A" & TEXT(ROW()-1,"@")))+1) -> 106 | B108: Y | C108: シート③④ | D108: E | E108: 12 | L108: 6
A109: =IF($C109="","",MAX($A$3:INDIRECT("A" & TEXT(ROW()-1,"@")))+1) -> 107 | B109: Y | C109: シート③④ | D109: E | E109: 13 | G109: 晴 | H109: 晴 | I109: D | L109: 6
A110: =IF($C110="","",MAX($A$3:INDIRECT("A" & TEXT(ROW()-1,"@")))+1) -> 108 | B110: Y | C110: シート③④ | D110: E | E110: 14 | G110: 晴 | H110: 晴 | I110: D | L110: 6
A111: =IF($C111="","",MAX($A$3:INDIRECT("A" & TEXT(ROW()-1,"@")))+1) -> 109 | B111: Y | C111: シート③④ | D111: E | E111: 15 | G111: 晴 | H111: 晴 | I111: D | L111: 6
A112: =IF($C112="","",MAX($A$3:INDIRECT("A" & TEXT(ROW()-1,"@")))+1) -> 110 | B112: Y | C112: シート③④ | D112: E | E112: 16 | G112: 晴 | H112: 晴 | I112: D | L112: 6
A113: =IF($C113="","",MAX($A$3:INDIRECT("A" & TEXT(ROW()-1,"@")))+1) -> 111 | B113: Y | C113: シート③④ | D113: E | E113: 17 | G113: 晴 | H113: 晴 | I113: D | L113: 6
A114: =IF($C114="","",MAX($A$3:INDIRECT("A" & TEXT(ROW()-1,"@")))+1) -> 112 | B114: Y | C114: シート③④ | D114: E | E114: 18 | G114: 晴 | H114: 晴 | I114: D | L114: 6
A115: =IF($C115="","",MAX($A$3:INDIRECT("A" & TEXT(ROW()-1,"@")))+1) -> 113 | B115: Y | C115: シート③④ | D115: E | E115: 19 | G115: 晴 | H115: 晴 | I115: D | L115: 6
A116: =IF($C116="","",MAX($A$3:INDIRECT("A" & TEXT(ROW()-1,"@")))+1) -> 114 | B116: Y | C116: シート③④ | D116: E | E116: 20 | G116: 晴 | H116: 晴 | I116: D | L116: 6
A117: =IF($C117="","",MAX($A$3:INDIRECT("A" & TEXT(ROW()-1,"@")))+1) -> 115 | B117: Y | C117: シート③④ | D117: E | E117: 21 | G117: 晴 | H117: 晴 | I117: D | L117: 6
A118: =IF($C118="","",MAX($A$3:INDIRECT("A" & TEXT(ROW()-1,"@")))+1) -> 116 | B118: Y | C118: シート③④ | D118: E | E118: 22 | G118: 晴 | H118: 晴 | I118: D | L118: 6
A119: =IF($C119="","",MAX($A$3:INDIRECT("A" & TEXT(ROW()-1,"@")))+1) -> 117 | B119: Y | C119: シート③④ | D119: E | E119: 23 | G119: 晴 | H119: 晴 | I119: D | L119: 6
A120: =IF($C120="","",MAX($A$3:INDIRECT("A" & TEXT(ROW()-1,"@")))+1) -> 118 | B120: Y | C120: シート③④ | D120: E | E120: 24 | G120: 晴 | H120: 晴 | I120: D | L120: 6
A121: =IF($C121="","",MAX($A$3:INDIRECT("A" & TEXT(ROW()-1,"@")))+1) -> 119 | B121: Y | C121: シート③④ | D121: E | E121: 25 | G121: 晴 | H121: 晴 | I121: D | L121: 6
A122: =IF($C122="","",MAX($A$3:INDIRECT("A" & TEXT(ROW()-1,"@")))+1) -> 120 | B122: Y | C122: シート③④ | D122: E | E122: 26 | G122: 晴 | H122: 晴 | I122: D | L122: 6
A123: =IF($C123="","",MAX($A$3:INDIRECT("A" & TEXT(ROW()-1,"@")))+1) -> 121 | B123: Y | C123: シート③④ | D123: E | E123: 27 | G123: 晴 | H123: 晴 | I123: D | L123: 6
A124: =IF($C124="","",MAX($A$3:INDIRECT("A" & TEXT(ROW()-1,"@")))+1) -> 122 | B124: Y | C124: シート③④ | D124: E | E124: 28 | G124: 晴 | H124: 晴 | I124: D | L124: 6
A125: =IF($C125="","",MAX($A$3:INDIRECT("A" & TEXT(ROW()-1,"@")))+1) -> 123 | B125: Y | C125: シート③④ | D125: E | E125: 29 | G125: 晴 | H125: 晴 | I125: D | L125: 6
A126: =IF($C126="","",MAX($A$3:INDIRECT("A" & TEXT(ROW()-1,"@")))+1) -> 124 | B126: Y | C126: シート③④ | D126: E | E126: 30 | G126: 晴 | H126: 晴 | I126: D | L126: 6
A127: =IF($C127="","",MAX($A$3:INDIRECT("A" & TEXT(ROW()-1,"@")))+1) -> 125 | B127: Y | C127: シート③④ | D127: E | E127: 31 | G127: 晴 | H127: 晴 | I127: D | L127: 6
A128: =IF($C128="","",MAX($A$3:INDIRECT("A" & TEXT(ROW()-1,"@")))+1) -> 126 | B128: Y | C128: シート③④ | D128: E | E128: 32 | G128: 晴 | H128: 晴 | I128: D | L128: 6
A129: =IF($C129="","",MAX($A$3:INDIRECT("A" & TEXT(ROW()-1,"@")))+1) -> 127 | B129: Y | C129: シート③④ | D129: E | E129: 33 | G129: 晴 | H129: 晴 | I129: D | L129: 6
A130: =IF($C130="","",MAX($A$3:INDIRECT("A" & TEXT(ROW()-1,"@")))+1) -> 128 | B130: Y | C130: シート③④ | D130: E | E130: 34 | G130: 晴 | H130: 晴 | I130: D | L130: 6
A131: =IF($C131="","",MAX($A$3:INDIRECT("A" & TEXT(ROW()-1,"@")))+1) -> 129 | B131: Y | C131: シート③④ | D131: E | E131: 35 | G131: 晴 | H131: 晴 | I131: D | L131: 6 | W131: =IF(AND($B131="",0<COUNTA($J131:$V131)),"?","") -> 
A132: =IF($C132="","",MAX($A$3:INDIRECT("A" & TEXT(ROW()-1,"@")))+1) -> 130 | B132: Y | C132: シート③④ | D132: E | E132: 36 | G132: =IFERROR(IF(ISBLANK(INDIRECT($C132 & "!" & $D132 & $E132)),"",INDIRECT($C132 & "!" & $D132 & $E132)),"") -> 晴 | H132: 晴 | I132: =IF($F132<>$H132,"D","") -> D | L132: 6 | X132: =IF(AND($B132<>"",OR($C132="",$D132="",$E132="")),"?","") -> 
A133: =IF($C133="","",MAX($A$3:INDIRECT("A" & TEXT(ROW()-1,"@")))+1) -> 131 | B133: Y | C133: シート③④ | D133: E | E133: 37 | L133: 6 | Z133: =IF(AND($H133<>"",$Y133<>""),$H133,"") -> 
A134: =IF($C134="","",MAX($A$3:INDIRECT("A" & TEXT(ROW()-1,"@")))+1) -> 132 | B134: Y | C134: シート③④ | D134: E | E134: 38 | H134: =IF(AND($B134<>"",$G134<>""),$G134,"") ->  | L134: 6
A135: =IF($C135="","",MAX($A$3:INDIRECT("A" & TEXT(ROW()-1,"@")))+1) -> 133 | B135: Y | C135: シート③④ | D135: E | E135: 39 | L135: 6
A136: =IF($C136="","",MAX($A$3:INDIRECT("A" & TEXT(ROW()-1,"@")))+1) -> 134 | B136: Y | C136: シート③④ | D136: E | E136: 40 | L136: 6
A137: =IF($C137="","",MAX($A$3:INDIRECT("A" & TEXT(ROW()-1,"@")))+1) -> 135 | B137: Y | C137: シート③④ | D137: E | E137: 41 | L137: 6
A138: =IF($C138="","",MAX($A$3:INDIRECT("A" & TEXT(ROW()-1,"@")))+1) -> 136 | B138: Y | C138: シート③④ | D138: E | E138: 42 | L138: 6
A139: =IF($C139="","",MAX($A$3:INDIRECT("A" & TEXT(ROW()-1,"@")))+1) -> 137 | B139: Y | C139: シート③④ | D139: E | E139: 43 | G139: 晴 | H139: 晴 | I139: D | L139: 6
A140: =IF($C140="","",MAX($A$3:INDIRECT("A" & TEXT(ROW()-1,"@")))+1) -> 138 | B140: Y | C140: シート③④ | D140: E | E140: 44 | G140: 晴 | H140: 晴 | I140: D | L140: 6
A141: =IF($C141="","",MAX($A$3:INDIRECT("A" & TEXT(ROW()-1,"@")))+1) -> 139 | B141: Y | C141: シート③④ | D141: E | E141: 45 | G141: 晴 | H141: 晴 | I141: D | L141: 6
A142: =IF($C142="","",MAX($A$3:INDIRECT("A" & TEXT(ROW()-1,"@")))+1) -> 140 | B142: Y | C142: シート③④ | D142: E | E142: 46 | G142: 晴 | H142: 晴 | I142: D | L142: 6
A143: =IF($C143="","",MAX($A$3:INDIRECT("A" & TEXT(ROW()-1,"@")))+1) -> 141 | B143: Y | C143: シート③④ | D143: E | E143: 47 | G143: 晴 | H143: 晴 | I143: D | L143: 6
A144: =IF($C144="","",MAX($A$3:INDIRECT("A" & TEXT(ROW()-1,"@")))+1) -> 142 | B144: Y | C144: シート③④ | D144: E | E144: 48 | G144: 晴 | H144: 晴 | I144: D | L144: 6
A145: =IF($C145="","",MAX($A$3:INDIRECT("A" & TEXT(ROW()-1,"@")))+1) -> 143 | B145: Y | C145: シート③④ | D145: E | E145: 49 | G145: 晴 | H145: 晴 | I145: D | L145: 6
A146: =IF($C146="","",MAX($A$3:INDIRECT("A" & TEXT(ROW()-1,"@")))+1) -> 144 | B146: Y | C146: シート③④ | D146: E | E146: 50 | G146: 晴 | H146: 晴 | I146: D | L146: 6
A147: =IF($C147="","",MAX($A$3:INDIRECT("A" & TEXT(ROW()-1,"@")))+1) -> 145 | B147: Y | C147: シート③④ | D147: E | E147: 51 | G147: 晴 | H147: 晴 | I147: D | L147: 6
A148: =IF($C148="","",MAX($A$3:INDIRECT("A" & TEXT(ROW()-1,"@")))+1) -> 146 | B148: Y | C148: シート③④ | D148: E | E148: 52 | G148: 晴 | H148: 晴 | I148: D | L148: 6
A149: =IF($C149="","",MAX($A$3:INDIRECT("A" & TEXT(ROW()-1,"@")))+1) -> 147 | B149: Y | C149: シート③④ | D149: E | E149: 53 | G149: 晴 | H149: 晴 | I149: D | L149: 6
A150: =IF($C150="","",MAX($A$3:INDIRECT("A" & TEXT(ROW()-1,"@")))+1) -> 148 | B150: Y | C150: シート③④ | D150: E | E150: 54 | G150: 晴 | H150: 晴 | I150: D | L150: 6
A151: =IF($C151="","",MAX($A$3:INDIRECT("A" & TEXT(ROW()-1,"@")))+1) -> 149 | B151: Y | C151: シート③④ | D151: E | E151: 55 | G151: 晴 | H151: 晴 | I151: D | L151: 6
A152: =IF($C152="","",MAX($A$3:INDIRECT("A" & TEXT(ROW()-1,"@")))+1) -> 150 | B152: Y | C152: シート③④ | D152: E | E152: 56 | G152: 晴 | H152: 晴 | I152: D | L152: 6
A153: =IF($C153="","",MAX($A$3:INDIRECT("A" & TEXT(ROW()-1,"@")))+1) -> 151 | B153: Y | C153: シート③④ | D153: E | E153: 57 | G153: 晴 | H153: 晴 | I153: D | L153: 6
A154: =IF($C154="","",MAX($A$3:INDIRECT("A" & TEXT(ROW()-1,"@")))+1) -> 152 | B154: Y | C154: シート③④ | D154: E | E154: 58 | G154: 晴 | H154: 晴 | I154: D | L154: 6
A155: =IF($C155="","",MAX($A$3:INDIRECT("A" & TEXT(ROW()-1,"@")))+1) -> 153 | B155: Y | C155: シート③④ | D155: E | E155: 59 | G155: 晴 | H155: 晴 | I155: D | L155: 6
A156: =IF($C156="","",MAX($A$3:INDIRECT("A" & TEXT(ROW()-1,"@")))+1) -> 154 | B156: Y | C156: シート③④ | D156: E | E156: 60 | G156: 晴 | H156: 晴 | I156: D | L156: 6
A157: =IF($C157="","",MAX($A$3:INDIRECT("A" & TEXT(ROW()-1,"@")))+1) -> 155 | B157: Y | C157: シート③④ | D157: E | E157: 61 | L157: 6
A158: =IF($C158="","",MAX($A$3:INDIRECT("A" & TEXT(ROW()-1,"@")))+1) -> 156 | B158: Y | C158: シート③④ | D158: E | E158: 62 | L158: 6
A159: =IF($C159="","",MAX($A$3:INDIRECT("A" & TEXT(ROW()-1,"@")))+1) -> 157 | B159: Y | C159: シート③④ | D159: E | E159: 63 | L159: 6
A160: =IF($C160="","",MAX($A$3:INDIRECT("A" & TEXT(ROW()-1,"@")))+1) -> 158 | B160: Y | C160: シート③④ | D160: E | E160: 73 | G160: 晴 | H160: 晴 | I160: D | L160: 6
A161: =IF($C161="","",MAX($A$3:INDIRECT("A" & TEXT(ROW()-1,"@")))+1) -> 159 | B161: Y | C161: シート③④ | D161: E | E161: 74 | L161: 6
A162: =IF($C162="","",MAX($A$3:INDIRECT("A" & TEXT(ROW()-1,"@")))+1) -> 160 | B162: Y | C162: シート③④ | D162: E | E162: 75 | L162: 6
A163: =IF($C163="","",MAX($A$3:INDIRECT("A" & TEXT(ROW()-1,"@")))+1) -> 161 | B163: Y | C163: シート③④ | D163: E | E163: 76 | G163: 晴 | H163: 晴 | I163: D | L163: 6
A164: =IF($C164="","",MAX($A$3:INDIRECT("A" & TEXT(ROW()-1,"@")))+1) -> 162 | B164: Y | C164: シート③④ | D164: E | E164: 77 | L164: 6
A165: =IF($C165="","",MAX($A$3:INDIRECT("A" & TEXT(ROW()-1,"@")))+1) -> 163 | B165: Y | C165: シート③④ | D165: E | E165: 78 | L165: 6
A166: =IF($C166="","",MAX($A$3:INDIRECT("A" & TEXT(ROW()-1,"@")))+1) -> 164 | B166: Y | C166: シート③④ | D166: E | E166: 79 | G166: 晴 | H166: 晴 | I166: D | L166: 6
A167: =IF($C167="","",MAX($A$3:INDIRECT("A" & TEXT(ROW()-1,"@")))+1) -> 165 | B167: Y | C167: シート③④ | D167: E | E167: 80 | L167: 6
A168: =IF($C168="","",MAX($A$3:INDIRECT("A" & TEXT(ROW()-1,"@")))+1) -> 166 | B168: Y | C168: シート③④ | D168: E | E168: 81 | L168: 6
A169: =IF($C169="","",MAX($A$3:INDIRECT("A" & TEXT(ROW()-1,"@")))+1) -> 167 | B169: Y | C169: シート③④ | D169: E | E169: 82 | G169: 晴 | H169: 晴 | I169: D | L169: 6
A170: =IF($C170="","",MAX($A$3:INDIRECT("A" & TEXT(ROW()-1,"@")))+1) -> 168 | B170: Y | C170: シート③④ | D170: E | E170: 83 | L170: 6
A171: =IF($C171="","",MAX($A$3:INDIRECT("A" & TEXT(ROW()-1,"@")))+1) -> 169 | B171: Y | C171: シート③④ | D171: E | E171: 84 | L171: 6
A172: =IF($C172="","",MAX($A$3:INDIRECT("A" & TEXT(ROW()-1,"@")))+1) -> 170 | B172: Y | C172: シート③④ | D172: E | E172: 85 | G172: 晴 | H172: 晴 | I172: D | L172: 6
A173: =IF($C173="","",MAX($A$3:INDIRECT("A" & TEXT(ROW()-1,"@")))+1) -> 171 | B173: Y | C173: シート③④ | D173: E | E173: 86 | L173: 6
A174: =IF($C174="","",MAX($A$3:INDIRECT("A" & TEXT(ROW()-1,"@")))+1) -> 172 | B174: Y | C174: シート③④ | D174: E | E174: 87 | L174: 6
A175: =IF($C175="","",MAX($A$3:INDIRECT("A" & TEXT(ROW()-1,"@")))+1) -> 173 | B175: Y | C175: シート③④ | D175: E | E175: 88 | L175: 6
A176: =IF($C176="","",MAX($A$3:INDIRECT("A" & TEXT(ROW()-1,"@")))+1) -> 174 | B176: Y | C176: シート③④ | D176: E | E176: 89 | L176: 6
A177: =IF($C177="","",MAX($A$3:INDIRECT("A" & TEXT(ROW()-1,"@")))+1) -> 175 | B177: Y | C177: シート③④ | D177: E | E177: 90 | L177: 6
A178: =IF($C178="","",MAX($A$3:INDIRECT("A" & TEXT(ROW()-1,"@")))+1) -> 176 | B178: Y | C178: シート③④ | D178: E | E178: 91 | L178: 6
A179: =IF($C179="","",MAX($A$3:INDIRECT("A" & TEXT(ROW()-1,"@")))+1) -> 177 | B179: Y | C179: シート③④ | D179: E | E179: 92 | L179: 6
A180: =IF($C180="","",MAX($A$3:INDIRECT("A" & TEXT(ROW()-1,"@")))+1) -> 178 | B180: Y | C180: シート③④ | D180: E | E180: 93 | L180: 6
A181: =IF($C181="","",MAX($A$3:INDIRECT("A" & TEXT(ROW()-1,"@")))+1) -> 179 | B181: Y | C181: シート③④ | D181: E | E181: 94 | G181: 晴 | H181: 晴 | I181: D | L181: 6
A182: =IF($C182="","",MAX($A$3:INDIRECT("A" & TEXT(ROW()-1,"@")))+1) -> 180 | B182: Y | C182: シート③④ | D182: E | E182: 95 | L182: 6
A183: =IF($C183="","",MAX($A$3:INDIRECT("A" & TEXT(ROW()-1,"@")))+1) -> 181 | B183: Y | C183: シート③④ | D183: E | E183: 96 | L183: 6
A184: =IF($C184="","",MAX($A$3:INDIRECT("A" & TEXT(ROW()-1,"@")))+1) -> 182 | B184: Y | C184: シート③④ | D184: E | E184: 97 | G184: 晴 | H184: 晴 | I184: D | L184: 6
A185: =IF($C185="","",MAX($A$3:INDIRECT("A" & TEXT(ROW()-1,"@")))+1) -> 183 | B185: Y | C185: シート③④ | D185: E | E185: 98 | L185: 6
A186: =IF($C186="","",MAX($A$3:INDIRECT("A" & TEXT(ROW()-1,"@")))+1) -> 184 | B186: Y | C186: シート③④ | D186: E | E186: 99 | L186: 6
A187: =IF($C187="","",MAX($A$3:INDIRECT("A" & TEXT(ROW()-1,"@")))+1) -> 185 | B187: Y | C187: シート③④ | D187: E | E187: 100 | G187: 晴 | H187: 晴 | I187: D | L187: 6
A188: =IF($C188="","",MAX($A$3:INDIRECT("A" & TEXT(ROW()-1,"@")))+1) -> 186 | B188: Y | C188: シート③④ | D188: E | E188: 101 | L188: 6
A189: =IF($C189="","",MAX($A$3:INDIRECT("A" & TEXT(ROW()-1,"@")))+1) -> 187 | B189: Y | C189: シート③④ | D189: E | E189: 102 | L189: 6
A190: =IF($C190="","",MAX($A$3:INDIRECT("A" & TEXT(ROW()-1,"@")))+1) -> 188 | B190: Y | C190: シート③④ | D190: F | E190: 10 | G190: 0.625 | H190: 0.625 | I190: D | M190: TIME
A191: =IF($C191="","",MAX($A$3:INDIRECT("A" & TEXT(ROW()-1,"@")))+1) -> 189 | B191: Y | C191: シート③④ | D191: F | E191: 11 | M191: TIME
A192: =IF($C192="","",MAX($A$3:INDIRECT("A" & TEXT(ROW()-1,"@")))+1) -> 190 | B192: Y | C192: シート③④ | D192: F | E192: 12 | M192: TIME
A193: =IF($C193="","",MAX($A$3:INDIRECT("A" & TEXT(ROW()-1,"@")))+1) -> 191 | B193: Y | C193: シート③④ | D193: F | E193: 13 | G193: 0.3333333333 | H193: 0.3333333333 | I193: D | M193: TIME
A194: =IF($C194="","",MAX($A$3:INDIRECT("A" & TEXT(ROW()-1,"@")))+1) -> 192 | B194: Y | C194: シート③④ | D194: F | E194: 14 | G194: 0.5416666667 | H194: 0.5416666667 | I194: D | M194: TIME
A195: =IF($C195="","",MAX($A$3:INDIRECT("A" & TEXT(ROW()-1,"@")))+1) -> 193 | B195: Y | C195: シート③④ | D195: F | E195: 15 | G195: 0.7083333333 | H195: 0.7083333333 | I195: D | M195: TIME | W195: =IF(AND($B195="",0<COUNTA($J195:$V195)),"?","") -> 
A196: =IF($C196="","",MAX($A$3:INDIRECT("A" & TEXT(ROW()-1,"@")))+1) -> 194 | B196: Y | C196: シート③④ | D196: F | E196: 16 | G196: =IFERROR(IF(ISBLANK(INDIRECT($C196 & "!" & $D196 & $E196)),"",INDIRECT($C196 & "!" & $D196 & $E196)),"") -> 0.3333333333 | H196: 0.3333333333 | I196: =IF($F196<>$H196,"D","") -> D | M196: TIME | X196: =IF(AND($B196<>"",OR($C196="",$D196="",$E196="")),"?","") -> 
A197: =IF($C197="","",MAX($A$3:INDIRECT("A" & TEXT(ROW()-1,"@")))+1) -> 195 | B197: Y | C197: シート③④ | D197: F | E197: 17 | G197: 0.5416666667 | H197: 0.5416666667 | I197: D | M197: TIME | Z197: =IF(AND($H197<>"",$Y197<>""),$H197,"") -> 
A198: =IF($C198="","",MAX($A$3:INDIRECT("A" & TEXT(ROW()-1,"@")))+1) -> 196 | B198: Y | C198: シート③④ | D198: F | E198: 18 | G198: 0.7083333333 | H198: =IF(AND($B198<>"",$G198<>""),$G198,"") -> 0.7083333333 | I198: D | M198: TIME
A199: =IF($C199="","",MAX($A$3:INDIRECT("A" & TEXT(ROW()-1,"@")))+1) -> 197 | B199: Y | C199: シート③④ | D199: F | E199: 19 | G199: 0.3958333333 | H199: 0.3958333333 | I199: D | M199: TIME
A200: =IF($C200="","",MAX($A$3:INDIRECT("A" & TEXT(ROW()-1,"@")))+1) -> 198 | B200: Y | C200: シート③④ | D200: F | E200: 20 | M200: TIME
... 539 more rows
